Department family,Entity,Date,Expense type,Expense area,Supplier,Transaction number,Amount
Department of Health,Leicestershire Partnership NHS Trust,02/01/24,Lease Rents (IFRS16),County Hall,LEIC COUNTY COUNCIL,6296969,34488.50
Department of Health,Leicestershire Partnership NHS Trust,02/01/24,Systems Development and Hosting,LLR Shared Care Record Programme,HUMBER  NHSFT  (RV9),59893944,455000.00
Department of Health,Leicestershire Partnership NHS Trust,02/01/24,Crs_NHS_LT1y -Resus Inventory Supplied.,Balance Sheet Collection,SUPPLY CHAIN CO LTD,1124257829,50635.72
Department of Health,Leicestershire Partnership NHS Trust,02/01/24,Computer Software,HIS Programme & Change,EAST MIDLANDS CARE,PF2023241,30000.00
Department of Health,Leicestershire Partnership NHS Trust,02/01/24,Medical Equipment Repairs / Maintenance,Medical Devices Maintenance (LPT),SUPPLY CHAIN CO LTD,2124006930,63485.28
Department of Health,Leicestershire Partnership NHS Trust,02/01/24,Computer Software,ChatHealth,APPERCEPT LTD,1284,37800.00
Department of Health,Leicestershire Partnership NHS Trust,02/01/24,Healthcare Services / Recharges from Non-NHS Bodies,AMH - Central Access Point,TURNING POINT,SI-TPS-00050160,110098.92
Department of Health,Leicestershire Partnership NHS Trust,02/01/24,Crs_NHS_LT1y -Resus Inventory Supplied.,Balance Sheet Collection,SUPPLY CHAIN CO LTD,1124266753,50451.12
Department of Health,Leicestershire Partnership NHS Trust,02/01/24,Payroll Deductions -Salary Sacrifice Cars Scheme,Balance Sheet Collection,TUSKER,85738,61304.35
Department of Health,Leicestershire Partnership NHS Trust,03/01/24,Lease Rents (IFRS16),Work Force Transformation,NSPCC,121010,30278.51
Department of Health,Leicestershire Partnership NHS Trust,03/01/24,WIP Project Not in BS - Buildings excl Dwellings,Work in Progress,TILBURY DOUGLAS CONSTRUCTION LTD,23120402,255552.83
Department of Health,Leicestershire Partnership NHS Trust,03/01/24,WIP Project Not in BS - Buildings excl Dwellings,Work in Progress,TILBURY DOUGLAS CONSTRUCTION LTD,23120377,31871.27
Department of Health,Leicestershire Partnership NHS Trust,03/01/24,WIP Project Not in BS - Buildings excl Dwellings,Work in Progress,TILBURY DOUGLAS CONSTRUCTION LTD,23120378,45348.83
Department of Health,Leicestershire Partnership NHS Trust,03/01/24,WIP Project Not in BS - Buildings excl Dwellings,Work in Progress,TILBURY DOUGLAS CONSTRUCTION LTD,23120379,69073.21
Department of Health,Leicestershire Partnership NHS Trust,03/01/24,WIP Project Not in BS - Buildings excl Dwellings,Work in Progress,TILBURY DOUGLAS CONSTRUCTION LTD,23120386,27031.96
Department of Health,Leicestershire Partnership NHS Trust,03/01/24,WIP Project Not in BS - Buildings excl Dwellings,Work in Progress,TILBURY DOUGLAS CONSTRUCTION LTD,23120387,25596.92
Department of Health,Leicestershire Partnership NHS Trust,03/01/24,WIP Project Not in BS - Buildings excl Dwellings,Work in Progress,TILBURY DOUGLAS CONSTRUCTION LTD,23120389,66665.80
Department of Health,Leicestershire Partnership NHS Trust,03/01/24,Medical Equipment Repairs / Maintenance,Medical Devices Maintenance (LPT),SUPPLY CHAIN CO LTD,2124006931,317426.39
Department of Health,Leicestershire Partnership NHS Trust,03/01/24,Drugs,Adult City Drugs,POLAR SPEED THERMOLOGISTICS,0001211157,13363.51
Department of Health,Leicestershire Partnership NHS Trust,03/01/24,Drugs,Neighbourhood Workforce Model,POLAR SPEED THERMOLOGISTICS,0001211157,20045.26
Department of Health,Leicestershire Partnership NHS Trust,03/01/24,Healthcare Services / Recharges from Non-NHS Bodies,Adult Eating Disorder Collaborative,PRIORY GROUP,301DEC23LEC,105217.85
Department of Health,Leicestershire Partnership NHS Trust,04/01/24,NURSE - BAND 2 - AGENCY,Beechwood Ward,HCL NURSING,HNSI0001528,4528.20
Department of Health,Leicestershire Partnership NHS Trust,04/01/24,NURSE - BAND 5 - AGENCY,Beechwood Ward,HCL NURSING,HNSI0001528,3067.14
Department of Health,Leicestershire Partnership NHS Trust,04/01/24,NURSE - BAND 5 - AGENCY,City Planned Care - East,HCL NURSING,HNSI0001528,28817.89
Department of Health,Leicestershire Partnership NHS Trust,04/01/24,NURSE - BAND 5 - AGENCY,City Planned Care - West,HCL NURSING,HNSI0001528,22423.63
Department of Health,Leicestershire Partnership NHS Trust,04/01/24,NURSE - BAND 2 - AGENCY,Clarendon Ward,HCL NURSING,HNSI0001528,1944.85
Department of Health,Leicestershire Partnership NHS Trust,04/01/24,NURSE - BAND 5 - AGENCY,Clarendon Ward,HCL NURSING,HNSI0001528,3678.29
Department of Health,Leicestershire Partnership NHS Trust,04/01/24,NURSE - BAND 2 - AGENCY,Coalville Snibston Ward,HCL NURSING,HNSI0001528,2422.84
Department of Health,Leicestershire Partnership NHS Trust,04/01/24,NURSE - BAND 5 - AGENCY,Coalville Snibston Ward,HCL NURSING,HNSI0001528,1384.90
Department of Health,Leicestershire Partnership NHS Trust,04/01/24,NURSE - BAND 2 - AGENCY,Coalville Ward 2,HCL NURSING,HNSI0001528,3693.31
Department of Health,Leicestershire Partnership NHS Trust,04/01/24,NURSE - BAND 5 - AGENCY,Coalville Ward 2,HCL NURSING,HNSI0001528,933.95
Department of Health,Leicestershire Partnership NHS Trust,04/01/24,NURSE - BAND 2 - AGENCY,Dalgliesh Ward,HCL NURSING,HNSI0001528,6911.65
Department of Health,Leicestershire Partnership NHS Trust,04/01/24,NURSE - BAND 5 - AGENCY,Dalgliesh Ward,HCL NURSING,HNSI0001528,3755.27
Department of Health,Leicestershire Partnership NHS Trust,04/01/24,NURSE - BAND 5 - AGENCY,"East Planned Care - Melton,Syston,Rutland",HCL NURSING,HNSI0001528,4483.99
Department of Health,Leicestershire Partnership NHS Trust,04/01/24,NURSE - BAND 5 - AGENCY,"East Planned Care - Oadby,Wigston & Harborough",HCL NURSING,HNSI0001528,6345.37
Department of Health,Leicestershire Partnership NHS Trust,04/01/24,NURSE - BAND 2 - AGENCY,H&B Comm Hosp East Ward,HCL NURSING,HNSI0001528,15004.85
Department of Health,Leicestershire Partnership NHS Trust,04/01/24,NURSE - BAND 5 - AGENCY,H&B Comm Hosp East Ward,HCL NURSING,HNSI0001528,9939.44
Department of Health,Leicestershire Partnership NHS Trust,04/01/24,NURSE - BAND 2 - AGENCY,H&B Comm Hosp North Ward,HCL NURSING,HNSI0001528,4870.35
Department of Health,Leicestershire Partnership NHS Trust,04/01/24,NURSE - BAND 5 - AGENCY,H&B Comm Hosp North Ward,HCL NURSING,HNSI0001528,945.55
Department of Health,Leicestershire Partnership NHS Trust,04/01/24,NURSE - BAND 2 - AGENCY,Lough Swithland Ward,HCL NURSING,HNSI0001528,3050.44
Department of Health,Leicestershire Partnership NHS Trust,04/01/24,NURSE - BAND 5 - AGENCY,Lough Swithland Ward,HCL NURSING,HNSI0001528,386.05
Department of Health,Leicestershire Partnership NHS Trust,04/01/24,NURSE - BAND 2 - AGENCY,Loughborough Charnwood Ward,HCL NURSING,HNSI0001528,8598.48
Department of Health,Leicestershire Partnership NHS Trust,04/01/24,NURSE - BAND 5 - AGENCY,Loughborough Charnwood Ward,HCL NURSING,HNSI0001528,5233.74
Department of Health,Leicestershire Partnership NHS Trust,04/01/24,NURSE - BAND 2 - AGENCY,Rutland Ward Nursing,HCL NURSING,HNSI0001528,5188.92
Department of Health,Leicestershire Partnership NHS Trust,04/01/24,NURSE - BAND 5 - AGENCY,Rutland Ward Nursing,HCL NURSING,HNSI0001528,1863.47
Department of Health,Leicestershire Partnership NHS Trust,04/01/24,NURSE - BAND 2 - AGENCY,St Lukes Stroke Ward,HCL NURSING,HNSI0001528,8015.71
Department of Health,Leicestershire Partnership NHS Trust,04/01/24,NURSE - BAND 5 - AGENCY,St Lukes Stroke Ward,HCL NURSING,HNSI0001528,5492.64
Department of Health,Leicestershire Partnership NHS Trust,04/01/24,NURSE - BAND 2 - AGENCY,St Lukes Ward 3,HCL NURSING,HNSI0001528,4392.05
Department of Health,Leicestershire Partnership NHS Trust,04/01/24,NURSE - BAND 5 - AGENCY,St Lukes Ward 3,HCL NURSING,HNSI0001528,1517.99
Department of Health,Leicestershire Partnership NHS Trust,04/01/24,NURSE - BAND 5 - AGENCY,West Planned Care  - Charnwood Hub,HCL NURSING,HNSI0001528,4686.75
Department of Health,Leicestershire Partnership NHS Trust,04/01/24,NURSE - BAND 5 - AGENCY,West Planned Care  - Hinckley Hub,HCL NURSING,HNSI0001528,4853.18
Department of Health,Leicestershire Partnership NHS Trust,04/01/24,NURSE - BAND 2 - AGENCY,Beechwood Ward,HCL NURSING,HNSI0001532,5009.77
Department of Health,Leicestershire Partnership NHS Trust,04/01/24,NURSE - BAND 5 - AGENCY,Beechwood Ward,HCL NURSING,HNSI0001532,1459.59
Department of Health,Leicestershire Partnership NHS Trust,04/01/24,NURSE - BAND 5 - AGENCY,City Planned Care - East,HCL NURSING,HNSI0001532,36171.46
Department of Health,Leicestershire Partnership NHS Trust,04/01/24,NURSE - BAND 5 - AGENCY,City Planned Care - West,HCL NURSING,HNSI0001532,20370.75
Department of Health,Leicestershire Partnership NHS Trust,04/01/24,NURSE - BAND 2 - AGENCY,Clarendon Ward,HCL NURSING,HNSI0001532,2441.50
Department of Health,Leicestershire Partnership NHS Trust,04/01/24,NURSE - BAND 5 - AGENCY,Clarendon Ward,HCL NURSING,HNSI0001532,1856.68
Department of Health,Leicestershire Partnership NHS Trust,04/01/24,NURSE - BAND 2 - AGENCY,Coalville Snibston Ward,HCL NURSING,HNSI0001532,5052.23
Department of Health,Leicestershire Partnership NHS Trust,04/01/24,NURSE - BAND 5 - AGENCY,Coalville Snibston Ward,HCL NURSING,HNSI0001532,3611.21
Department of Health,Leicestershire Partnership NHS Trust,04/01/24,NURSE - BAND 2 - AGENCY,Coalville Ward 2,HCL NURSING,HNSI0001532,3323.94
Department of Health,Leicestershire Partnership NHS Trust,04/01/24,NURSE - BAND 5 - AGENCY,Coalville Ward 2,HCL NURSING,HNSI0001532,3041.29
Department of Health,Leicestershire Partnership NHS Trust,04/01/24,NURSE - BAND 2 - AGENCY,Dalgliesh Ward,HCL NURSING,HNSI0001532,10838.86
Department of Health,Leicestershire Partnership NHS Trust,04/01/24,NURSE - BAND 5 - AGENCY,Dalgliesh Ward,HCL NURSING,HNSI0001532,6739.69
Department of Health,Leicestershire Partnership NHS Trust,04/01/24,NURSE - BAND 5 - AGENCY,"East Planned Care - Melton,Syston,Rutland",HCL NURSING,HNSI0001532,1228.56
Department of Health,Leicestershire Partnership NHS Trust,04/01/24,NURSE - BAND 5 - AGENCY,"East Planned Care - Oadby,Wigston & Harborough",HCL NURSING,HNSI0001532,4789.65
Department of Health,Leicestershire Partnership NHS Trust,04/01/24,NURSE - BAND 2 - AGENCY,H&B Comm Hosp East Ward,HCL NURSING,HNSI0001532,12254.60
Department of Health,Leicestershire Partnership NHS Trust,04/01/24,NURSE - BAND 5 - AGENCY,H&B Comm Hosp East Ward,HCL NURSING,HNSI0001532,8892.93
Department of Health,Leicestershire Partnership NHS Trust,04/01/24,NURSE - BAND 2 - AGENCY,H&B Comm Hosp North Ward,HCL NURSING,HNSI0001532,4847.44
Department of Health,Leicestershire Partnership NHS Trust,04/01/24,NURSE - BAND 5 - AGENCY,H&B Comm Hosp North Ward,HCL NURSING,HNSI0001532,1585.71
Department of Health,Leicestershire Partnership NHS Trust,04/01/24,NURSE - BAND 2 - AGENCY,Lough Swithland Ward,HCL NURSING,HNSI0001532,4616.87
Department of Health,Leicestershire Partnership NHS Trust,04/01/24,NURSE - BAND 5 - AGENCY,Lough Swithland Ward,HCL NURSING,HNSI0001532,3027.80
Department of Health,Leicestershire Partnership NHS Trust,04/01/24,NURSE - BAND 2 - AGENCY,Loughborough Charnwood Ward,HCL NURSING,HNSI0001532,6038.33
Department of Health,Leicestershire Partnership NHS Trust,04/01/24,NURSE - BAND 5 - AGENCY,Loughborough Charnwood Ward,HCL NURSING,HNSI0001532,13721.94
Department of Health,Leicestershire Partnership NHS Trust,04/01/24,NURSE - BAND 2 - AGENCY,Rutland Ward Nursing,HCL NURSING,HNSI0001532,4963.16
Department of Health,Leicestershire Partnership NHS Trust,04/01/24,NURSE - BAND 5 - AGENCY,Rutland Ward Nursing,HCL NURSING,HNSI0001532,3307.22
Department of Health,Leicestershire Partnership NHS Trust,04/01/24,NURSE - BAND 2 - AGENCY,St Lukes Stroke Ward,HCL NURSING,HNSI0001532,5782.71
Department of Health,Leicestershire Partnership NHS Trust,04/01/24,NURSE - BAND 5 - AGENCY,St Lukes Stroke Ward,HCL NURSING,HNSI0001532,5248.92
Department of Health,Leicestershire Partnership NHS Trust,04/01/24,NURSE - BAND 2 - AGENCY,St Lukes Ward 3,HCL NURSING,HNSI0001532,4885.56
Department of Health,Leicestershire Partnership NHS Trust,04/01/24,NURSE - BAND 5 - AGENCY,St Lukes Ward 3,HCL NURSING,HNSI0001532,467.53
Department of Health,Leicestershire Partnership NHS Trust,04/01/24,NURSE - BAND 5 - AGENCY,West Planned Care  - Charnwood Hub,HCL NURSING,HNSI0001532,4150.65
Department of Health,Leicestershire Partnership NHS Trust,04/01/24,NURSE - BAND 5 - AGENCY,West Planned Care  - Hinckley Hub,HCL NURSING,HNSI0001532,3939.01
Department of Health,Leicestershire Partnership NHS Trust,04/01/24,NURSE - BAND 2 - AGENCY,Beechwood Ward,HCL NURSING,HNSI0001536,4207.80
Department of Health,Leicestershire Partnership NHS Trust,04/01/24,NURSE - BAND 5 - AGENCY,Beechwood Ward,HCL NURSING,HNSI0001536,2053.24
Department of Health,Leicestershire Partnership NHS Trust,04/01/24,NURSE - BAND 5 - AGENCY,City Planned Care - East,HCL NURSING,HNSI0001536,34743.52
Department of Health,Leicestershire Partnership NHS Trust,04/01/24,NURSE - BAND 5 - AGENCY,City Planned Care - West,HCL NURSING,HNSI0001536,21225.04
Department of Health,Leicestershire Partnership NHS Trust,04/01/24,NURSE - BAND 2 - AGENCY,Clarendon Ward,HCL NURSING,HNSI0001536,3642.52
Department of Health,Leicestershire Partnership NHS Trust,04/01/24,NURSE - BAND 5 - AGENCY,Clarendon Ward,HCL NURSING,HNSI0001536,478.03
Department of Health,Leicestershire Partnership NHS Trust,04/01/24,NURSE - BAND 2 - AGENCY,Coalville Snibston Ward,HCL NURSING,HNSI0001536,5825.24
Department of Health,Leicestershire Partnership NHS Trust,04/01/24,NURSE - BAND 5 - AGENCY,Coalville Snibston Ward,HCL NURSING,HNSI0001536,2026.78
Department of Health,Leicestershire Partnership NHS Trust,04/01/24,NURSE - BAND 2 - AGENCY,Coalville Ward 2,HCL NURSING,HNSI0001536,2413.57
Department of Health,Leicestershire Partnership NHS Trust,04/01/24,NURSE - BAND 5 - AGENCY,Coalville Ward 2,HCL NURSING,HNSI0001536,908.19
Department of Health,Leicestershire Partnership NHS Trust,04/01/24,NURSE - BAND 2 - AGENCY,Dalgliesh Ward,HCL NURSING,HNSI0001536,6590.13
Department of Health,Leicestershire Partnership NHS Trust,04/01/24,NURSE - BAND 5 - AGENCY,Dalgliesh Ward,HCL NURSING,HNSI0001536,6193.77
Department of Health,Leicestershire Partnership NHS Trust,04/01/24,NURSE - BAND 5 - AGENCY,"East Planned Care - Melton,Syston,Rutland",HCL NURSING,HNSI0001536,2759.84
Department of Health,Leicestershire Partnership NHS Trust,04/01/24,NURSE - BAND 5 - AGENCY,"East Planned Care - Oadby,Wigston & Harborough",HCL NURSING,HNSI0001536,4128.69
Department of Health,Leicestershire Partnership NHS Trust,04/01/24,NURSE - BAND 2 - AGENCY,H&B Comm Hosp East Ward,HCL NURSING,HNSI0001536,11558.49
Department of Health,Leicestershire Partnership NHS Trust,04/01/24,NURSE - BAND 5 - AGENCY,H&B Comm Hosp East Ward,HCL NURSING,HNSI0001536,13988.43
Department of Health,Leicestershire Partnership NHS Trust,04/01/24,NURSE - BAND 2 - AGENCY,H&B Comm Hosp North Ward,HCL NURSING,HNSI0001536,4684.66
Department of Health,Leicestershire Partnership NHS Trust,04/01/24,NURSE - BAND 5 - AGENCY,H&B Comm Hosp North Ward,HCL NURSING,HNSI0001536,2921.17
Department of Health,Leicestershire Partnership NHS Trust,04/01/24,NURSE - BAND 2 - AGENCY,Lough Swithland Ward,HCL NURSING,HNSI0001536,3218.18
Department of Health,Leicestershire Partnership NHS Trust,04/01/24,NURSE - BAND 5 - AGENCY,Lough Swithland Ward,HCL NURSING,HNSI0001536,1683.49
Department of Health,Leicestershire Partnership NHS Trust,04/01/24,NURSE - BAND 2 - AGENCY,Loughborough Charnwood Ward,HCL NURSING,HNSI0001536,3271.27
Department of Health,Leicestershire Partnership NHS Trust,04/01/24,NURSE - BAND 5 - AGENCY,Loughborough Charnwood Ward,HCL NURSING,HNSI0001536,7274.45
Department of Health,Leicestershire Partnership NHS Trust,04/01/24,NURSE - BAND 2 - AGENCY,Rutland Ward Nursing,HCL NURSING,HNSI0001536,2930.98
Department of Health,Leicestershire Partnership NHS Trust,04/01/24,NURSE - BAND 5 - AGENCY,Rutland Ward Nursing,HCL NURSING,HNSI0001536,4077.90
Department of Health,Leicestershire Partnership NHS Trust,04/01/24,NURSE - BAND 2 - AGENCY,St Lukes Stroke Ward,HCL NURSING,HNSI0001536,5536.31
Department of Health,Leicestershire Partnership NHS Trust,04/01/24,NURSE - BAND 5 - AGENCY,St Lukes Stroke Ward,HCL NURSING,HNSI0001536,6149.37
Department of Health,Leicestershire Partnership NHS Trust,04/01/24,NURSE - BAND 2 - AGENCY,St Lukes Ward 3,HCL NURSING,HNSI0001536,4480.39
Department of Health,Leicestershire Partnership NHS Trust,04/01/24,NURSE - BAND 5 - AGENCY,St Lukes Ward 3,HCL NURSING,HNSI0001536,2188.02
Department of Health,Leicestershire Partnership NHS Trust,04/01/24,NURSE - BAND 5 - AGENCY,West Planned Care  - Charnwood Hub,HCL NURSING,HNSI0001536,1774.83
Department of Health,Leicestershire Partnership NHS Trust,04/01/24,NURSE - BAND 5 - AGENCY,West Planned Care  - Hinckley Hub,HCL NURSING,HNSI0001536,1695.07
Department of Health,Leicestershire Partnership NHS Trust,04/01/24,Healthcare Services / Recharges from Non-NHS Bodies,Adult Eating Disorder Collaborative,ELLERN MEDE MOORGATE,OTM0843,37200.00
Department of Health,Leicestershire Partnership NHS Trust,04/01/24,Healthcare Services / Recharges from Non-NHS Bodies,Adult Eating Disorder Collaborative,NAVIGO H&SC CIC,2134,25753.00
Department of Health,Leicestershire Partnership NHS Trust,04/01/24,Admin & Clerical - Band 5,360 Assurance - Coventry & Warwick,SOUTH WARWICKSHIRE NHSFT,1100017246,752.96
Department of Health,Leicestershire Partnership NHS Trust,04/01/24,Admin & Clerical - Band 6,360 Assurance - Coventry & Warwick,SOUTH WARWICKSHIRE NHSFT,1100017246,25454.72
Department of Health,Leicestershire Partnership NHS Trust,04/01/24,Admin & Clerical - Band 7,360 Assurance - Coventry & Warwick,SOUTH WARWICKSHIRE NHSFT,1100017246,80494.91
Department of Health,Leicestershire Partnership NHS Trust,04/01/24,Non Pay Reserves,360 Assurance - Coventry & Warwick,SOUTH WARWICKSHIRE NHSFT,1100017246,7500.00
Department of Health,Leicestershire Partnership NHS Trust,04/01/24,Senior Manager - Band 8B,360 Assurance - Coventry & Warwick,SOUTH WARWICKSHIRE NHSFT,1100017246,86543.89
Department of Health,Leicestershire Partnership NHS Trust,04/01/24,Admin & Clerical - Agency,360 Assurance - Internal Audit,SOUTH WARWICKSHIRE NHSFT,1100017246,0.00
Department of Health,Leicestershire Partnership NHS Trust,04/01/24,Admin & Clerical - Band 5,360 Assurance - Coventry & Warwick,SOUTH WARWICKSHIRE NHSFT,1100017245,160.49
Department of Health,Leicestershire Partnership NHS Trust,04/01/24,Admin & Clerical - Band 6,360 Assurance - Coventry & Warwick,SOUTH WARWICKSHIRE NHSFT,1100017245,25006.72
Department of Health,Leicestershire Partnership NHS Trust,04/01/24,Admin & Clerical - Band 7,360 Assurance - Coventry & Warwick,SOUTH WARWICKSHIRE NHSFT,1100017245,140763.63
Department of Health,Leicestershire Partnership NHS Trust,04/01/24,Non Pay Reserves,360 Assurance - Coventry & Warwick,SOUTH WARWICKSHIRE NHSFT,1100017245,7500.00
Department of Health,Leicestershire Partnership NHS Trust,04/01/24,Senior Manager - Band 8B,360 Assurance - Coventry & Warwick,SOUTH WARWICKSHIRE NHSFT,1100017245,86528.11
Department of Health,Leicestershire Partnership NHS Trust,04/01/24,Senior Manager - Band 8D,360 Assurance - Coventry & Warwick,SOUTH WARWICKSHIRE NHSFT,1100017245,4533.09
Department of Health,Leicestershire Partnership NHS Trust,04/01/24,Admin & Clerical - Agency,360 Assurance - Internal Audit,SOUTH WARWICKSHIRE NHSFT,1100017245,0.00
Department of Health,Leicestershire Partnership NHS Trust,04/01/24,External Consultancy Fees,Leicester City CCG IT Recharge,NOTTS HLTHC NHS FT,1000057644,25000.00
Department of Health,Leicestershire Partnership NHS Trust,05/01/24,Lease Rents (IFRS16),"St Peters Health Center (Part 1st and 2nd floors) (P66, LPT)",LEICESTER LIFT CO,LEP1-SI1480,34244.84
Department of Health,Leicestershire Partnership NHS Trust,05/01/24,Healthcare Services / Recharges from Non-NHS Bodies,CMS Reserves,SPIRIT DIGITAL LTD,SIN240105SDI00075,59400.00
Department of Health,Leicestershire Partnership NHS Trust,05/01/24,Nurse - Band 6 -Agency,Adult County North West Leicestershire CMHT,HCL NURSING,HNSI0001527,813.17
Department of Health,Leicestershire Partnership NHS Trust,05/01/24,NURSE - BAND 2 - AGENCY,Agnes Unit,HCL NURSING,HNSI0001527,12308.90
Department of Health,Leicestershire Partnership NHS Trust,05/01/24,NURSE - BAND 5 - AGENCY,Agnes Unit,HCL NURSING,HNSI0001527,22258.16
Department of Health,Leicestershire Partnership NHS Trust,05/01/24,Nurse - Band 7 - Agency,Agnes Unit,HCL NURSING,HNSI0001527,1573.85
Department of Health,Leicestershire Partnership NHS Trust,05/01/24,NURSE - BAND 2 - AGENCY,Ashby Ward (Bradgate Unit),HCL NURSING,HNSI0001527,987.53
Department of Health,Leicestershire Partnership NHS Trust,05/01/24,NURSE - BAND 5 - AGENCY,Ashby Ward (Bradgate Unit),HCL NURSING,HNSI0001527,9141.51
Department of Health,Leicestershire Partnership NHS Trust,05/01/24,NURSE - BAND 2 - AGENCY,Aston Ward Bradgate Unit (Prev Welford),HCL NURSING,HNSI0001527,540.65
Department of Health,Leicestershire Partnership NHS Trust,05/01/24,NURSE - BAND 5 - AGENCY,Aston Ward Bradgate Unit (Prev Welford),HCL NURSING,HNSI0001527,2061.64
Department of Health,Leicestershire Partnership NHS Trust,05/01/24,NURSE - BAND 2 - AGENCY,Beaumont Ward - Bradgate Unit,HCL NURSING,HNSI0001527,1285.97
Department of Health,Leicestershire Partnership NHS Trust,05/01/24,NURSE - BAND 5 - AGENCY,Beaumont Ward - Bradgate Unit,HCL NURSING,HNSI0001527,5622.41
Department of Health,Leicestershire Partnership NHS Trust,05/01/24,NURSE - BAND 2 - AGENCY,Belvoir Psychiatric Intensive Care Unit,HCL NURSING,HNSI0001527,1400.70
Department of Health,Leicestershire Partnership NHS Trust,05/01/24,NURSE - BAND 5 - AGENCY,Belvoir Psychiatric Intensive Care Unit,HCL NURSING,HNSI0001527,4379.88
Department of Health,Leicestershire Partnership NHS Trust,05/01/24,NURSE - BAND 2 - AGENCY,Bosworth Ward - Bradgate Unit,HCL NURSING,HNSI0001527,1132.53
Department of Health,Leicestershire Partnership NHS Trust,05/01/24,NURSE - BAND 5 - AGENCY,Bosworth Ward - Bradgate Unit,HCL NURSING,HNSI0001527,3137.76
Department of Health,Leicestershire Partnership NHS Trust,05/01/24,NURSE - BAND 5 - AGENCY,Cedar (Willows),HCL NURSING,HNSI0001527,1204.78
Department of Health,Leicestershire Partnership NHS Trust,05/01/24,Nurse - Band 6 -Agency,City West CMHT MHSOP,HCL NURSING,HNSI0001527,1046.25
Department of Health,Leicestershire Partnership NHS Trust,05/01/24,NURSE - BAND 2 - AGENCY,Coleman Ward,HCL NURSING,HNSI0001527,205.84
Department of Health,Leicestershire Partnership NHS Trust,05/01/24,NURSE - BAND 5 - AGENCY,Coleman Ward,HCL NURSING,HNSI0001527,3299.14
Department of Health,Leicestershire Partnership NHS Trust,05/01/24,NURSE - BAND 5 - AGENCY,Crisis Resolution,HCL NURSING,HNSI0001527,1363.83
Department of Health,Leicestershire Partnership NHS Trust,05/01/24,NURSE - BAND 2 - AGENCY,Griffin Ward (HPC),HCL NURSING,HNSI0001527,1257.25
Department of Health,Leicestershire Partnership NHS Trust,05/01/24,NURSE - BAND 5 - AGENCY,Griffin Ward (HPC),HCL NURSING,HNSI0001527,9293.21
Department of Health,Leicestershire Partnership NHS Trust,05/01/24,NURSE - BAND 2 - AGENCY,Gwendolen Ward,HCL NURSING,HNSI0001527,1201.23
Department of Health,Leicestershire Partnership NHS Trust,05/01/24,NURSE - BAND 5 - AGENCY,Gwendolen Ward,HCL NURSING,HNSI0001527,3028.44
Department of Health,Leicestershire Partnership NHS Trust,05/01/24,NURSE - BAND 2 - AGENCY,Heather Ward,HCL NURSING,HNSI0001527,1592.88
Department of Health,Leicestershire Partnership NHS Trust,05/01/24,NURSE - BAND 5 - AGENCY,Heather Ward,HCL NURSING,HNSI0001527,6618.58
Department of Health,Leicestershire Partnership NHS Trust,05/01/24,NURSE - BAND 2 - AGENCY,Kirby Ward,HCL NURSING,HNSI0001527,176.62
Department of Health,Leicestershire Partnership NHS Trust,05/01/24,NURSE - BAND 5 - AGENCY,Kirby Ward,HCL NURSING,HNSI0001527,1728.58
Department of Health,Leicestershire Partnership NHS Trust,05/01/24,NURSE - BAND 2 - AGENCY,Maple Ward,HCL NURSING,HNSI0001527,240.04
Department of Health,Leicestershire Partnership NHS Trust,05/01/24,NURSE - BAND 5 - AGENCY,Maple Ward,HCL NURSING,HNSI0001527,1518.13
Department of Health,Leicestershire Partnership NHS Trust,05/01/24,NURSE - BAND 2 - AGENCY,Mill Lodge,HCL NURSING,HNSI0001527,2356.07
Department of Health,Leicestershire Partnership NHS Trust,05/01/24,NURSE - BAND 5 - AGENCY,Mill Lodge,HCL NURSING,HNSI0001527,1032.76
Department of Health,Leicestershire Partnership NHS Trust,05/01/24,NURSE - BAND 2 - AGENCY,Phoenix Ward (HPC),HCL NURSING,HNSI0001527,1521.74
Department of Health,Leicestershire Partnership NHS Trust,05/01/24,NURSE - BAND 5 - AGENCY,Phoenix Ward (HPC),HCL NURSING,HNSI0001527,2929.07
Department of Health,Leicestershire Partnership NHS Trust,05/01/24,NURSE - BAND 2 - AGENCY,Place Of Safety Assessment Unit,HCL NURSING,HNSI0001527,415.78
Department of Health,Leicestershire Partnership NHS Trust,05/01/24,NURSE - BAND 5 - AGENCY,Place Of Safety Assessment Unit,HCL NURSING,HNSI0001527,2453.71
Department of Health,Leicestershire Partnership NHS Trust,05/01/24,NURSE - BAND 2 - AGENCY,Sycamore (Willows),HCL NURSING,HNSI0001527,467.79
Department of Health,Leicestershire Partnership NHS Trust,05/01/24,NURSE - BAND 5 - AGENCY,Sycamore (Willows),HCL NURSING,HNSI0001527,283.64
Department of Health,Leicestershire Partnership NHS Trust,05/01/24,NURSE - BAND 5 - AGENCY,Thornton Ward - Bradgate Unit,HCL NURSING,HNSI0001527,2258.35
Department of Health,Leicestershire Partnership NHS Trust,05/01/24,NURSE - BAND 2 - AGENCY,CAMHS Inpatient Service,HCL NURSING,HNSI0001529,7425.81
Department of Health,Leicestershire Partnership NHS Trust,05/01/24,NURSE - BAND 5 - AGENCY,CAMHS Inpatient Service,HCL NURSING,HNSI0001529,7402.41
Department of Health,Leicestershire Partnership NHS Trust,05/01/24,Nurse - Band 7 - Agency,CAMHS Waiting List Monies,HCL NURSING,HNSI0001529,2801.04
Department of Health,Leicestershire Partnership NHS Trust,05/01/24,Nurse - Band 7 - Agency,Crisis Response and Home Treatment,HCL NURSING,HNSI0001529,2752.25
Department of Health,Leicestershire Partnership NHS Trust,05/01/24,NURSE - BAND 2 - AGENCY,Welford Ward (Prev Langley),HCL NURSING,HNSI0001529,238.08
Department of Health,Leicestershire Partnership NHS Trust,05/01/24,NURSE - BAND 5 - AGENCY,Welford Ward (Prev Langley),HCL NURSING,HNSI0001529,2353.09
Department of Health,Leicestershire Partnership NHS Trust,05/01/24,Nurse - Band 6 -Agency,CAMHS Waiting List Monies,HCL WORKFORCE SOLUTIONS,HWSI0002035,14431.23
Department of Health,Leicestershire Partnership NHS Trust,05/01/24,Nurse - Band 7 - Agency,City West CMHT MHSOP,HCL WORKFORCE SOLUTIONS,HWSI0002035,1368.75
Department of Health,Leicestershire Partnership NHS Trust,05/01/24,Nurse - Band 6 -Agency,Crisis Response and Home Treatment,HCL WORKFORCE SOLUTIONS,HWSI0002035,10921.97
Department of Health,Leicestershire Partnership NHS Trust,08/01/24,NURSE - BAND 2 - AGENCY,CAMHS Inpatient Service,HCL NURSING,HNSI0001533,4548.52
Department of Health,Leicestershire Partnership NHS Trust,08/01/24,NURSE - BAND 5 - AGENCY,CAMHS Inpatient Service,HCL NURSING,HNSI0001533,8638.59
Department of Health,Leicestershire Partnership NHS Trust,08/01/24,Nurse - Band 7 - Agency,CAMHS Waiting List Monies,HCL NURSING,HNSI0001533,5086.87
Department of Health,Leicestershire Partnership NHS Trust,08/01/24,NURSE - BAND 5 - AGENCY,Welford Ward (Prev Langley),HCL NURSING,HNSI0001533,2978.49
Department of Health,Leicestershire Partnership NHS Trust,08/01/24,Nurse - Band 6 -Agency,CAMHS Waiting List Monies,HCL WORKFORCE SOLUTIONS,HWSI0002043,11734.77
Department of Health,Leicestershire Partnership NHS Trust,08/01/24,Nurse - Band 7 - Agency,City West CMHT MHSOP,HCL WORKFORCE SOLUTIONS,HWSI0002043,1368.75
Department of Health,Leicestershire Partnership NHS Trust,08/01/24,Nurse - Band 6 -Agency,Crisis Response and Home Treatment,HCL WORKFORCE SOLUTIONS,HWSI0002043,8640.26
Department of Health,Leicestershire Partnership NHS Trust,08/01/24,Nurse - Band 6 -Agency,AMH - Central Access Point,HCL NURSING,HNSI0001531,6842.05
Department of Health,Leicestershire Partnership NHS Trust,08/01/24,Nurse - Band 6 -Agency,Adult City Central CMHT - St Peters,HCL NURSING,HNSI0001531,974.09
Department of Health,Leicestershire Partnership NHS Trust,08/01/24,Nurse - Band 6 -Agency,Adult City East CMHT,HCL NURSING,HNSI0001531,4186.84
Department of Health,Leicestershire Partnership NHS Trust,08/01/24,Nurse - Band 6 -Agency,Adult County North West Leicestershire CMHT,HCL NURSING,HNSI0001531,813.17
Department of Health,Leicestershire Partnership NHS Trust,08/01/24,NURSE - BAND 2 - AGENCY,Agnes Unit,HCL NURSING,HNSI0001531,9563.92
Department of Health,Leicestershire Partnership NHS Trust,08/01/24,NURSE - BAND 5 - AGENCY,Agnes Unit,HCL NURSING,HNSI0001531,21952.73
Department of Health,Leicestershire Partnership NHS Trust,08/01/24,Nurse - Band 7 - Agency,Agnes Unit,HCL NURSING,HNSI0001531,1248.30
Department of Health,Leicestershire Partnership NHS Trust,08/01/24,NURSE - BAND 2 - AGENCY,Ashby Ward (Bradgate Unit),HCL NURSING,HNSI0001531,879.08
Department of Health,Leicestershire Partnership NHS Trust,08/01/24,NURSE - BAND 5 - AGENCY,Ashby Ward (Bradgate Unit),HCL NURSING,HNSI0001531,6912.85
Department of Health,Leicestershire Partnership NHS Trust,08/01/24,NURSE - BAND 2 - AGENCY,Aston Ward Bradgate Unit (Prev Welford),HCL NURSING,HNSI0001531,205.84
Department of Health,Leicestershire Partnership NHS Trust,08/01/24,NURSE - BAND 5 - AGENCY,Aston Ward Bradgate Unit (Prev Welford),HCL NURSING,HNSI0001531,1756.58
Department of Health,Leicestershire Partnership NHS Trust,08/01/24,NURSE - BAND 2 - AGENCY,Beaumont Ward - Bradgate Unit,HCL NURSING,HNSI0001531,1004.68
Department of Health,Leicestershire Partnership NHS Trust,08/01/24,NURSE - BAND 5 - AGENCY,Beaumont Ward - Bradgate Unit,HCL NURSING,HNSI0001531,4397.33
Department of Health,Leicestershire Partnership NHS Trust,08/01/24,NURSE - BAND 2 - AGENCY,Belvoir Psychiatric Intensive Care Unit,HCL NURSING,HNSI0001531,1611.43
Department of Health,Leicestershire Partnership NHS Trust,08/01/24,NURSE - BAND 5 - AGENCY,Belvoir Psychiatric Intensive Care Unit,HCL NURSING,HNSI0001531,4605.95
Department of Health,Leicestershire Partnership NHS Trust,08/01/24,NURSE - BAND 2 - AGENCY,Bosworth Ward - Bradgate Unit,HCL NURSING,HNSI0001531,3225.84
Department of Health,Leicestershire Partnership NHS Trust,08/01/24,NURSE - BAND 5 - AGENCY,Bosworth Ward - Bradgate Unit,HCL NURSING,HNSI0001531,983.06
Department of Health,Leicestershire Partnership NHS Trust,08/01/24,NURSE - BAND 2 - AGENCY,Cedar (Willows),HCL NURSING,HNSI0001531,169.51
Department of Health,Leicestershire Partnership NHS Trust,08/01/24,NURSE - BAND 5 - AGENCY,Cedar (Willows),HCL NURSING,HNSI0001531,1208.28
Department of Health,Leicestershire Partnership NHS Trust,08/01/24,Nurse - Band 6 -Agency,City West CMHT MHSOP,HCL NURSING,HNSI0001531,855.97
Department of Health,Leicestershire Partnership NHS Trust,08/01/24,NURSE - BAND 2 - AGENCY,Coleman Ward,HCL NURSING,HNSI0001531,411.68
Department of Health,Leicestershire Partnership NHS Trust,08/01/24,NURSE - BAND 5 - AGENCY,Coleman Ward,HCL NURSING,HNSI0001531,3890.52
Department of Health,Leicestershire Partnership NHS Trust,08/01/24,NURSE - BAND 5 - AGENCY,Crisis Resolution,HCL NURSING,HNSI0001531,970.77
Department of Health,Leicestershire Partnership NHS Trust,08/01/24,NURSE - BAND 2 - AGENCY,Griffin Ward (HPC),HCL NURSING,HNSI0001531,1762.12
Department of Health,Leicestershire Partnership NHS Trust,08/01/24,NURSE - BAND 5 - AGENCY,Griffin Ward (HPC),HCL NURSING,HNSI0001531,10220.44
Department of Health,Leicestershire Partnership NHS Trust,08/01/24,NURSE - BAND 2 - AGENCY,Gwendolen Ward,HCL NURSING,HNSI0001531,1200.83
Department of Health,Leicestershire Partnership NHS Trust,08/01/24,NURSE - BAND 5 - AGENCY,Gwendolen Ward,HCL NURSING,HNSI0001531,2678.72
Department of Health,Leicestershire Partnership NHS Trust,08/01/24,NURSE - BAND 2 - AGENCY,Heather Ward,HCL NURSING,HNSI0001531,2241.19
Department of Health,Leicestershire Partnership NHS Trust,08/01/24,NURSE - BAND 5 - AGENCY,Heather Ward,HCL NURSING,HNSI0001531,2787.37
Department of Health,Leicestershire Partnership NHS Trust,08/01/24,NURSE - BAND 2 - AGENCY,Kirby Ward,HCL NURSING,HNSI0001531,419.55
Department of Health,Leicestershire Partnership NHS Trust,08/01/24,NURSE - BAND 5 - AGENCY,Kirby Ward,HCL NURSING,HNSI0001531,502.45
Department of Health,Leicestershire Partnership NHS Trust,08/01/24,NURSE - BAND 2 - AGENCY,Maple Ward,HCL NURSING,HNSI0001531,313.26
Department of Health,Leicestershire Partnership NHS Trust,08/01/24,NURSE - BAND 5 - AGENCY,Maple Ward,HCL NURSING,HNSI0001531,1343.99
Department of Health,Leicestershire Partnership NHS Trust,08/01/24,NURSE - BAND 2 - AGENCY,Mill Lodge,HCL NURSING,HNSI0001531,5321.27
Department of Health,Leicestershire Partnership NHS Trust,08/01/24,NURSE - BAND 5 - AGENCY,Mill Lodge,HCL NURSING,HNSI0001531,1041.76
Department of Health,Leicestershire Partnership NHS Trust,08/01/24,NURSE - BAND 2 - AGENCY,Phoenix Ward (HPC),HCL NURSING,HNSI0001531,645.73
Department of Health,Leicestershire Partnership NHS Trust,08/01/24,NURSE - BAND 5 - AGENCY,Phoenix Ward (HPC),HCL NURSING,HNSI0001531,3591.28
Department of Health,Leicestershire Partnership NHS Trust,08/01/24,NURSE - BAND 2 - AGENCY,Place Of Safety Assessment Unit,HCL NURSING,HNSI0001531,929.14
Department of Health,Leicestershire Partnership NHS Trust,08/01/24,NURSE - BAND 5 - AGENCY,Place Of Safety Assessment Unit,HCL NURSING,HNSI0001531,1782.06
Department of Health,Leicestershire Partnership NHS Trust,08/01/24,NURSE - BAND 2 - AGENCY,Stewart House,HCL NURSING,HNSI0001531,233.91
Department of Health,Leicestershire Partnership NHS Trust,08/01/24,NURSE - BAND 5 - AGENCY,Sycamore (Willows),HCL NURSING,HNSI0001531,295.84
Department of Health,Leicestershire Partnership NHS Trust,08/01/24,NURSE - BAND 2 - AGENCY,Thornton Ward - Bradgate Unit,HCL NURSING,HNSI0001531,1067.37
Department of Health,Leicestershire Partnership NHS Trust,08/01/24,NURSE - BAND 5 - AGENCY,Thornton Ward - Bradgate Unit,HCL NURSING,HNSI0001531,2345.18
Department of Health,Leicestershire Partnership NHS Trust,08/01/24,NHS Property Services Estates Management,"Braunstone Health and Social Care Centre (part) (P16, LPT)",NHS PROPERTY SERVICES LTD,761194,77109.25
Department of Health,Leicestershire Partnership NHS Trust,08/01/24,NHS Property Services Estates Management,Charnwood Mill (PROPCO),NHS PROPERTY SERVICES LTD,761196,39815.40
Department of Health,Leicestershire Partnership NHS Trust,08/01/24,NHS Property Services Estates Management,Charnwood Mill (PROPCO),NHS PROPERTY SERVICES LTD,762625,67607.57
Department of Health,Leicestershire Partnership NHS Trust,08/01/24,NHS Property Services Estates Management,"Braunstone Health and Social Care Centre (part) (P16, LPT)",NHS PROPERTY SERVICES LTD,762626,64028.52
Department of Health,Leicestershire Partnership NHS Trust,08/01/24,NHS Property Services Estates Management,New Parks Health Centre (PROPCO),NHS PROPERTY SERVICES LTD,762629,53726.55
Department of Health,Leicestershire Partnership NHS Trust,08/01/24,Nurse - Band 6 -Agency,AMH - Central Access Point,HCL WORKFORCE SOLUTIONS,HWSI0002041,9735.35
Department of Health,Leicestershire Partnership NHS Trust,08/01/24,Nurse - Band 6 -Agency,Adult City Central CMHT - St Peters,HCL WORKFORCE SOLUTIONS,HWSI0002041,1183.63
Department of Health,Leicestershire Partnership NHS Trust,08/01/24,Nurse - Band 6 -Agency,Adult County South Leicestershire CMHT,HCL WORKFORCE SOLUTIONS,HWSI0002041,1049.87
Department of Health,Leicestershire Partnership NHS Trust,08/01/24,Nurse - Band 6 -Agency,City West CMHT MHSOP,HCL WORKFORCE SOLUTIONS,HWSI0002041,6824.38
Department of Health,Leicestershire Partnership NHS Trust,08/01/24,Nurse - Band 6 -Agency,Crisis Resolution,HCL WORKFORCE SOLUTIONS,HWSI0002041,10121.69
Department of Health,Leicestershire Partnership NHS Trust,08/01/24,Nurse - Band 6 -Agency,Mental Health Liaison Team,HCL WORKFORCE SOLUTIONS,HWSI0002041,1499.34
Department of Health,Leicestershire Partnership NHS Trust,08/01/24,Unitary Payment,"The Agnes Unit (AKA Assessment and Treatment Centre) (P85, LPT)",ARDEN PARTNERSHIP (LEICESTER),SI0141,149196.42
Department of Health,Leicestershire Partnership NHS Trust,08/01/24,NHS Property Services Estates Management,St. Luke's Hospital (PROPCO),NHS PROPERTY SERVICES LTD,764073,44168.69
Department of Health,Leicestershire Partnership NHS Trust,08/01/24,NHS Property Services Estates Management,Melton Mowbray Hospital (previously St. Mary's) (PROPCO),NHS PROPERTY SERVICES LTD,764070,50846.10
Department of Health,Leicestershire Partnership NHS Trust,08/01/24,NHS Property Services Estates Management,Melton Mowbray Hospital (previously St. Mary's) (PROPCO),NHS PROPERTY SERVICES LTD,764076,27836.24
Department of Health,Leicestershire Partnership NHS Trust,08/01/24,NHS Property Services Estates Management,St Lukes Treatment Centre,NHS PROPERTY SERVICES LTD,764071,55680.33
Department of Health,Leicestershire Partnership NHS Trust,08/01/24,NURSE - BAND 2 - AGENCY,CAMHS Inpatient Service,HCL NURSING,HNSI0001537,6718.50
Department of Health,Leicestershire Partnership NHS Trust,08/01/24,NURSE - BAND 5 - AGENCY,CAMHS Inpatient Service,HCL NURSING,HNSI0001537,8061.78
Department of Health,Leicestershire Partnership NHS Trust,08/01/24,Nurse - Band 7 - Agency,CAMHS Waiting List Monies,HCL NURSING,HNSI0001537,4015.80
Department of Health,Leicestershire Partnership NHS Trust,08/01/24,NURSE - BAND 2 - AGENCY,Welford Ward (Prev Langley),HCL NURSING,HNSI0001537,1158.25
Department of Health,Leicestershire Partnership NHS Trust,08/01/24,NURSE - BAND 5 - AGENCY,Welford Ward (Prev Langley),HCL NURSING,HNSI0001537,2517.47
Department of Health,Leicestershire Partnership NHS Trust,08/01/24,Nurse - Band 6 -Agency,AMH - Central Access Point,HCL NURSING,HNSI0001535,1368.54
Department of Health,Leicestershire Partnership NHS Trust,08/01/24,Nurse - Band 6 -Agency,Adult City Central CMHT - St Peters,HCL NURSING,HNSI0001535,641.98
Department of Health,Leicestershire Partnership NHS Trust,08/01/24,Nurse - Band 6 -Agency,Adult City East CMHT,HCL NURSING,HNSI0001535,1032.76
Department of Health,Leicestershire Partnership NHS Trust,08/01/24,Nurse - Band 6 -Agency,Adult County North West Leicestershire CMHT,HCL NURSING,HNSI0001535,542.12
Department of Health,Leicestershire Partnership NHS Trust,08/01/24,NURSE - BAND 2 - AGENCY,Agnes Unit,HCL NURSING,HNSI0001535,8437.20
Department of Health,Leicestershire Partnership NHS Trust,08/01/24,NURSE - BAND 5 - AGENCY,Agnes Unit,HCL NURSING,HNSI0001535,19999.11
Department of Health,Leicestershire Partnership NHS Trust,08/01/24,Nurse - Band 7 - Agency,Agnes Unit,HCL NURSING,HNSI0001535,1573.82
Department of Health,Leicestershire Partnership NHS Trust,08/01/24,NURSE - BAND 5 - AGENCY,Ashby Ward (Bradgate Unit),HCL NURSING,HNSI0001535,9131.98
Department of Health,Leicestershire Partnership NHS Trust,08/01/24,NURSE - BAND 2 - AGENCY,Aston Ward Bradgate Unit (Prev Welford),HCL NURSING,HNSI0001535,877.01
Department of Health,Leicestershire Partnership NHS Trust,08/01/24,NURSE - BAND 5 - AGENCY,Aston Ward Bradgate Unit (Prev Welford),HCL NURSING,HNSI0001535,2077.92
Department of Health,Leicestershire Partnership NHS Trust,08/01/24,NURSE - BAND 2 - AGENCY,Beaumont Ward - Bradgate Unit,HCL NURSING,HNSI0001535,617.53
Department of Health,Leicestershire Partnership NHS Trust,08/01/24,NURSE - BAND 5 - AGENCY,Beaumont Ward - Bradgate Unit,HCL NURSING,HNSI0001535,4790.57
Department of Health,Leicestershire Partnership NHS Trust,08/01/24,NURSE - BAND 2 - AGENCY,Belvoir Psychiatric Intensive Care Unit,HCL NURSING,HNSI0001535,2098.14
Department of Health,Leicestershire Partnership NHS Trust,08/01/24,NURSE - BAND 5 - AGENCY,Belvoir Psychiatric Intensive Care Unit,HCL NURSING,HNSI0001535,5468.49
Department of Health,Leicestershire Partnership NHS Trust,08/01/24,NURSE - BAND 2 - AGENCY,Bosworth Ward - Bradgate Unit,HCL NURSING,HNSI0001535,1693.60
Department of Health,Leicestershire Partnership NHS Trust,08/01/24,NURSE - BAND 5 - AGENCY,Bosworth Ward - Bradgate Unit,HCL NURSING,HNSI0001535,1870.85
Department of Health,Leicestershire Partnership NHS Trust,08/01/24,NURSE - BAND 2 - AGENCY,Cedar (Willows),HCL NURSING,HNSI0001535,769.75
Department of Health,Leicestershire Partnership NHS Trust,08/01/24,NURSE - BAND 5 - AGENCY,Cedar (Willows),HCL NURSING,HNSI0001535,3216.17
Department of Health,Leicestershire Partnership NHS Trust,08/01/24,Nurse - Band 6 -Agency,City West CMHT MHSOP,HCL NURSING,HNSI0001535,2092.50
Department of Health,Leicestershire Partnership NHS Trust,08/01/24,NURSE - BAND 2 - AGENCY,Coleman Ward,HCL NURSING,HNSI0001535,2084.16
Department of Health,Leicestershire Partnership NHS Trust,08/01/24,NURSE - BAND 5 - AGENCY,Coleman Ward,HCL NURSING,HNSI0001535,3560.89
Department of Health,Leicestershire Partnership NHS Trust,08/01/24,NURSE - BAND 2 - AGENCY,Griffin Ward (HPC),HCL NURSING,HNSI0001535,724.94
Department of Health,Leicestershire Partnership NHS Trust,08/01/24,NURSE - BAND 5 - AGENCY,Griffin Ward (HPC),HCL NURSING,HNSI0001535,4897.20
Department of Health,Leicestershire Partnership NHS Trust,08/01/24,NURSE - BAND 2 - AGENCY,Gwendolen Ward,HCL NURSING,HNSI0001535,1543.89
Department of Health,Leicestershire Partnership NHS Trust,08/01/24,NURSE - BAND 5 - AGENCY,Gwendolen Ward,HCL NURSING,HNSI0001535,5376.11
Department of Health,Leicestershire Partnership NHS Trust,08/01/24,NURSE - BAND 2 - AGENCY,Heather Ward,HCL NURSING,HNSI0001535,964.59
Department of Health,Leicestershire Partnership NHS Trust,08/01/24,NURSE - BAND 5 - AGENCY,Heather Ward,HCL NURSING,HNSI0001535,3948.28
Department of Health,Leicestershire Partnership NHS Trust,08/01/24,NURSE - BAND 2 - AGENCY,Kirby Ward,HCL NURSING,HNSI0001535,488.41
Department of Health,Leicestershire Partnership NHS Trust,08/01/24,NURSE - BAND 5 - AGENCY,Kirby Ward,HCL NURSING,HNSI0001535,1312.42
Department of Health,Leicestershire Partnership NHS Trust,08/01/24,NURSE - BAND 2 - AGENCY,Maple Ward,HCL NURSING,HNSI0001535,411.68
Department of Health,Leicestershire Partnership NHS Trust,08/01/24,NURSE - BAND 5 - AGENCY,Maple Ward,HCL NURSING,HNSI0001535,2230.06
Department of Health,Leicestershire Partnership NHS Trust,08/01/24,NURSE - BAND 2 - AGENCY,Mill Lodge,HCL NURSING,HNSI0001535,1236.88
Department of Health,Leicestershire Partnership NHS Trust,08/01/24,NURSE - BAND 5 - AGENCY,Mill Lodge,HCL NURSING,HNSI0001535,3032.52
Department of Health,Leicestershire Partnership NHS Trust,08/01/24,NURSE - BAND 2 - AGENCY,Phoenix Ward (HPC),HCL NURSING,HNSI0001535,1676.40
Department of Health,Leicestershire Partnership NHS Trust,08/01/24,NURSE - BAND 5 - AGENCY,Phoenix Ward (HPC),HCL NURSING,HNSI0001535,3299.05
Department of Health,Leicestershire Partnership NHS Trust,08/01/24,NURSE - BAND 2 - AGENCY,Place Of Safety Assessment Unit,HCL NURSING,HNSI0001535,1368.78
Department of Health,Leicestershire Partnership NHS Trust,08/01/24,NURSE - BAND 5 - AGENCY,Place Of Safety Assessment Unit,HCL NURSING,HNSI0001535,3358.69
Department of Health,Leicestershire Partnership NHS Trust,08/01/24,NURSE - BAND 2 - AGENCY,Sycamore (Willows),HCL NURSING,HNSI0001535,133.46
Department of Health,Leicestershire Partnership NHS Trust,08/01/24,NURSE - BAND 5 - AGENCY,Sycamore (Willows),HCL NURSING,HNSI0001535,2301.35
Department of Health,Leicestershire Partnership NHS Trust,08/01/24,NURSE - BAND 2 - AGENCY,Thornton Ward - Bradgate Unit,HCL NURSING,HNSI0001535,617.88
Department of Health,Leicestershire Partnership NHS Trust,08/01/24,NURSE - BAND 5 - AGENCY,Thornton Ward - Bradgate Unit,HCL NURSING,HNSI0001535,2243.35
Department of Health,Leicestershire Partnership NHS Trust,08/01/24,Nurse - Band 6 -Agency,CAMHS Waiting List Monies,HCL WORKFORCE SOLUTIONS,HWSI0002055,11480.75
Department of Health,Leicestershire Partnership NHS Trust,08/01/24,Nurse - Band 7 - Agency,City West CMHT MHSOP,HCL WORKFORCE SOLUTIONS,HWSI0002055,1368.75
Department of Health,Leicestershire Partnership NHS Trust,08/01/24,Nurse - Band 6 -Agency,Crisis Response and Home Treatment,HCL WORKFORCE SOLUTIONS,HWSI0002055,9209.86
Department of Health,Leicestershire Partnership NHS Trust,08/01/24,NHS Property Services Estates Management,Melton Mowbray Hospital (previously St. Mary's) (PROPCO),NHS PROPERTY SERVICES LTD,765589,44046.61
Department of Health,Leicestershire Partnership NHS Trust,08/01/24,NHS Property Services Estates Management,St Lukes Treatment Centre,NHS PROPERTY SERVICES LTD,765591,57715.95
Department of Health,Leicestershire Partnership NHS Trust,08/01/24,NHS Property Services Estates Management,Melton Mowbray Hospital (previously St. Mary's) (PROPCO),NHS PROPERTY SERVICES LTD,765585,151061.58
Department of Health,Leicestershire Partnership NHS Trust,08/01/24,NHS Property Services Estates Management,St. Luke's Hospital (PROPCO),NHS PROPERTY SERVICES LTD,765592,262712.11
Department of Health,Leicestershire Partnership NHS Trust,08/01/24,Nurse - Band 6 -Agency,AMH - Central Access Point,HCL WORKFORCE SOLUTIONS,HWSI0002056,6333.88
Department of Health,Leicestershire Partnership NHS Trust,08/01/24,Nurse - Band 6 -Agency,Adult City Central CMHT - St Peters,HCL WORKFORCE SOLUTIONS,HWSI0002056,2071.36
Department of Health,Leicestershire Partnership NHS Trust,08/01/24,Nurse - Band 6 -Agency,Adult County South Leicestershire CMHT,HCL WORKFORCE SOLUTIONS,HWSI0002056,1769.22
Department of Health,Leicestershire Partnership NHS Trust,08/01/24,Nurse - Band 6 -Agency,City West CMHT MHSOP,HCL WORKFORCE SOLUTIONS,HWSI0002056,1943.04
Department of Health,Leicestershire Partnership NHS Trust,08/01/24,Nurse - Band 6 -Agency,Crisis Resolution,HCL WORKFORCE SOLUTIONS,HWSI0002056,9334.39
Department of Health,Leicestershire Partnership NHS Trust,08/01/24,Nurse - Band 6 -Agency,Mental Health Liaison Team,HCL WORKFORCE SOLUTIONS,HWSI0002056,1499.34
Department of Health,Leicestershire Partnership NHS Trust,08/01/24,Nurse - Band 6 -Agency,AMH - Central Access Point,HCL NURSING,HNSI0001539,3053.75
Department of Health,Leicestershire Partnership NHS Trust,08/01/24,Nurse - Band 6 -Agency,Adult City Central CMHT - St Peters,HCL NURSING,HNSI0001539,427.99
Department of Health,Leicestershire Partnership NHS Trust,08/01/24,Nurse - Band 6 -Agency,Adult City East CMHT,HCL NURSING,HNSI0001539,344.25
Department of Health,Leicestershire Partnership NHS Trust,08/01/24,NURSE - BAND 2 - AGENCY,Agnes Unit,HCL NURSING,HNSI0001539,5386.34
Department of Health,Leicestershire Partnership NHS Trust,08/01/24,NURSE - BAND 5 - AGENCY,Agnes Unit,HCL NURSING,HNSI0001539,23552.34
Department of Health,Leicestershire Partnership NHS Trust,08/01/24,Nurse - Band 7 - Agency,Agnes Unit,HCL NURSING,HNSI0001539,1143.94
Department of Health,Leicestershire Partnership NHS Trust,08/01/24,NURSE - BAND 2 - AGENCY,Ashby Ward (Bradgate Unit),HCL NURSING,HNSI0001539,519.10
Department of Health,Leicestershire Partnership NHS Trust,08/01/24,NURSE - BAND 5 - AGENCY,Ashby Ward (Bradgate Unit),HCL NURSING,HNSI0001539,7131.34
Department of Health,Leicestershire Partnership NHS Trust,08/01/24,NURSE - BAND 2 - AGENCY,Aston Ward Bradgate Unit (Prev Welford),HCL NURSING,HNSI0001539,450.81
Department of Health,Leicestershire Partnership NHS Trust,08/01/24,NURSE - BAND 5 - AGENCY,Aston Ward Bradgate Unit (Prev Welford),HCL NURSING,HNSI0001539,983.55
Department of Health,Leicestershire Partnership NHS Trust,08/01/24,NURSE - BAND 2 - AGENCY,Beaumont Ward - Bradgate Unit,HCL NURSING,HNSI0001539,1467.58
Department of Health,Leicestershire Partnership NHS Trust,08/01/24,NURSE - BAND 5 - AGENCY,Beaumont Ward - Bradgate Unit,HCL NURSING,HNSI0001539,7853.80
Department of Health,Leicestershire Partnership NHS Trust,08/01/24,NURSE - BAND 2 - AGENCY,Belvoir Psychiatric Intensive Care Unit,HCL NURSING,HNSI0001539,1949.19
Department of Health,Leicestershire Partnership NHS Trust,08/01/24,NURSE - BAND 5 - AGENCY,Belvoir Psychiatric Intensive Care Unit,HCL NURSING,HNSI0001539,3465.48
Department of Health,Leicestershire Partnership NHS Trust,08/01/24,NURSE - BAND 2 - AGENCY,Bosworth Ward - Bradgate Unit,HCL NURSING,HNSI0001539,1145.62
Department of Health,Leicestershire Partnership NHS Trust,08/01/24,NURSE - BAND 2 - AGENCY,Cedar (Willows),HCL NURSING,HNSI0001539,567.49
Department of Health,Leicestershire Partnership NHS Trust,08/01/24,NURSE - BAND 5 - AGENCY,Cedar (Willows),HCL NURSING,HNSI0001539,1892.96
Department of Health,Leicestershire Partnership NHS Trust,08/01/24,NURSE - BAND 2 - AGENCY,Coleman Ward,HCL NURSING,HNSI0001539,4257.06
Department of Health,Leicestershire Partnership NHS Trust,08/01/24,NURSE - BAND 5 - AGENCY,Coleman Ward,HCL NURSING,HNSI0001539,6180.79
Department of Health,Leicestershire Partnership NHS Trust,08/01/24,NURSE - BAND 5 - AGENCY,Crisis Resolution,HCL NURSING,HNSI0001539,1924.16
Department of Health,Leicestershire Partnership NHS Trust,08/01/24,NURSE - BAND 2 - AGENCY,Griffin Ward (HPC),HCL NURSING,HNSI0001539,519.10
Department of Health,Leicestershire Partnership NHS Trust,08/01/24,NURSE - BAND 5 - AGENCY,Griffin Ward (HPC),HCL NURSING,HNSI0001539,4680.98
Department of Health,Leicestershire Partnership NHS Trust,08/01/24,NURSE - BAND 2 - AGENCY,Gwendolen Ward,HCL NURSING,HNSI0001539,2711.32
Department of Health,Leicestershire Partnership NHS Trust,08/01/24,NURSE - BAND 5 - AGENCY,Gwendolen Ward,HCL NURSING,HNSI0001539,2573.88
Department of Health,Leicestershire Partnership NHS Trust,08/01/24,NURSE - BAND 2 - AGENCY,Heather Ward,HCL NURSING,HNSI0001539,1145.62
Department of Health,Leicestershire Partnership NHS Trust,08/01/24,NURSE - BAND 5 - AGENCY,Heather Ward,HCL NURSING,HNSI0001539,5777.17
Department of Health,Leicestershire Partnership NHS Trust,08/01/24,NURSE - BAND 2 - AGENCY,Kirby Ward,HCL NURSING,HNSI0001539,1526.08
Department of Health,Leicestershire Partnership NHS Trust,08/01/24,NURSE - BAND 5 - AGENCY,Kirby Ward,HCL NURSING,HNSI0001539,881.23
Department of Health,Leicestershire Partnership NHS Trust,08/01/24,NURSE - BAND 5 - AGENCY,Maple Ward,HCL NURSING,HNSI0001539,2517.90
Department of Health,Leicestershire Partnership NHS Trust,08/01/24,NURSE - BAND 2 - AGENCY,Mill Lodge,HCL NURSING,HNSI0001539,1320.72
Department of Health,Leicestershire Partnership NHS Trust,08/01/24,NURSE - BAND 5 - AGENCY,Mill Lodge,HCL NURSING,HNSI0001539,2092.10
Department of Health,Leicestershire Partnership NHS Trust,08/01/24,NURSE - BAND 2 - AGENCY,Phoenix Ward (HPC),HCL NURSING,HNSI0001539,871.75
Department of Health,Leicestershire Partnership NHS Trust,08/01/24,NURSE - BAND 5 - AGENCY,Phoenix Ward (HPC),HCL NURSING,HNSI0001539,602.74
Department of Health,Leicestershire Partnership NHS Trust,08/01/24,NURSE - BAND 2 - AGENCY,Place Of Safety Assessment Unit,HCL NURSING,HNSI0001539,973.04
Department of Health,Leicestershire Partnership NHS Trust,08/01/24,NURSE - BAND 5 - AGENCY,Place Of Safety Assessment Unit,HCL NURSING,HNSI0001539,1128.07
Department of Health,Leicestershire Partnership NHS Trust,08/01/24,NURSE - BAND 2 - AGENCY,Stewart House,HCL NURSING,HNSI0001539,567.49
Department of Health,Leicestershire Partnership NHS Trust,08/01/24,NURSE - BAND 5 - AGENCY,Sycamore (Willows),HCL NURSING,HNSI0001539,1617.48
Department of Health,Leicestershire Partnership NHS Trust,08/01/24,NURSE - BAND 2 - AGENCY,Thornton Ward - Bradgate Unit,HCL NURSING,HNSI0001539,519.10
Department of Health,Leicestershire Partnership NHS Trust,08/01/24,NURSE - BAND 5 - AGENCY,Thornton Ward - Bradgate Unit,HCL NURSING,HNSI0001539,2352.63
Department of Health,Leicestershire Partnership NHS Trust,08/01/24,Payroll Deductions -Home Electronics 87 Dec 23,Balance Sheet Collection,SME HCI LTD,150191,36710.10
Department of Health,Leicestershire Partnership NHS Trust,08/01/24,WIP Project Not In BS - Capital Staffing,Work in Progress,OMNICELL LTD,10481117,77700.00
Department of Health,Leicestershire Partnership NHS Trust,09/01/24,HR / Payroll Services,HR Employment Services,LINCOLNSHIRE PART NHSFT(RP7),L0001149,34400.00
Department of Health,Leicestershire Partnership NHS Trust,10/01/24,External Audit Fees,Finance Department,KPMG CONSULTING,5502757367,63000.00
Department of Health,Leicestershire Partnership NHS Trust,10/01/24,Insurance Costs,Chief Executives Office,NHS LITIGATION AUTHORITY,SICX414778,226283.80
Department of Health,Leicestershire Partnership NHS Trust,11/01/24,Services / Recharges from NHS Trusts,Inter Unit I & E Distribution,UHL NHS TRUST (RWE),L0277745,94664.84
Department of Health,Leicestershire Partnership NHS Trust,11/01/24,NURSE - BAND 2 - AGENCY,Beechwood Ward,HCL NURSING,HNSI0001540,7802.89
Department of Health,Leicestershire Partnership NHS Trust,11/01/24,NURSE - BAND 5 - AGENCY,Beechwood Ward,HCL NURSING,HNSI0001540,1400.70
Department of Health,Leicestershire Partnership NHS Trust,11/01/24,NURSE - BAND 5 - AGENCY,City Planned Care - East,HCL NURSING,HNSI0001540,30136.25
Department of Health,Leicestershire Partnership NHS Trust,11/01/24,NURSE - BAND 5 - AGENCY,City Planned Care - West,HCL NURSING,HNSI0001540,14455.93
Department of Health,Leicestershire Partnership NHS Trust,11/01/24,NURSE - BAND 2 - AGENCY,Clarendon Ward,HCL NURSING,HNSI0001540,4680.04
Department of Health,Leicestershire Partnership NHS Trust,11/01/24,NURSE - BAND 5 - AGENCY,Clarendon Ward,HCL NURSING,HNSI0001540,1539.62
Department of Health,Leicestershire Partnership NHS Trust,11/01/24,NURSE - BAND 2 - AGENCY,Coalville Snibston Ward,HCL NURSING,HNSI0001540,6418.67
Department of Health,Leicestershire Partnership NHS Trust,11/01/24,NURSE - BAND 5 - AGENCY,Coalville Snibston Ward,HCL NURSING,HNSI0001540,1582.54
Department of Health,Leicestershire Partnership NHS Trust,11/01/24,NURSE - BAND 2 - AGENCY,Coalville Ward 2,HCL NURSING,HNSI0001540,2352.63
Department of Health,Leicestershire Partnership NHS Trust,11/01/24,NURSE - BAND 5 - AGENCY,Coalville Ward 2,HCL NURSING,HNSI0001540,844.69
Department of Health,Leicestershire Partnership NHS Trust,11/01/24,NURSE - BAND 2 - AGENCY,Dalgliesh Ward,HCL NURSING,HNSI0001540,6594.85
Department of Health,Leicestershire Partnership NHS Trust,11/01/24,NURSE - BAND 5 - AGENCY,Dalgliesh Ward,HCL NURSING,HNSI0001540,4041.69
Department of Health,Leicestershire Partnership NHS Trust,11/01/24,NURSE - BAND 5 - AGENCY,"East Planned Care - Melton,Syston,Rutland",HCL NURSING,HNSI0001540,2272.45
Department of Health,Leicestershire Partnership NHS Trust,11/01/24,NURSE - BAND 5 - AGENCY,"East Planned Care - Oadby,Wigston & Harborough",HCL NURSING,HNSI0001540,2044.31
Department of Health,Leicestershire Partnership NHS Trust,11/01/24,NURSE - BAND 2 - AGENCY,H&B Comm Hosp East Ward,HCL NURSING,HNSI0001540,14434.91
Department of Health,Leicestershire Partnership NHS Trust,11/01/24,NURSE - BAND 5 - AGENCY,H&B Comm Hosp East Ward,HCL NURSING,HNSI0001540,8206.90
Department of Health,Leicestershire Partnership NHS Trust,11/01/24,NURSE - BAND 2 - AGENCY,H&B Comm Hosp North Ward,HCL NURSING,HNSI0001540,2080.93
Department of Health,Leicestershire Partnership NHS Trust,11/01/24,NURSE - BAND 5 - AGENCY,H&B Comm Hosp North Ward,HCL NURSING,HNSI0001540,1615.01
Department of Health,Leicestershire Partnership NHS Trust,11/01/24,NURSE - BAND 2 - AGENCY,Lough Swithland Ward,HCL NURSING,HNSI0001540,4965.53
Department of Health,Leicestershire Partnership NHS Trust,11/01/24,NURSE - BAND 5 - AGENCY,Lough Swithland Ward,HCL NURSING,HNSI0001540,1097.20
Department of Health,Leicestershire Partnership NHS Trust,11/01/24,NURSE - BAND 2 - AGENCY,Loughborough Charnwood Ward,HCL NURSING,HNSI0001540,5933.96
Department of Health,Leicestershire Partnership NHS Trust,11/01/24,NURSE - BAND 5 - AGENCY,Loughborough Charnwood Ward,HCL NURSING,HNSI0001540,8898.33
Department of Health,Leicestershire Partnership NHS Trust,11/01/24,NURSE - BAND 2 - AGENCY,Rutland Ward Nursing,HCL NURSING,HNSI0001540,1674.48
Department of Health,Leicestershire Partnership NHS Trust,11/01/24,NURSE - BAND 5 - AGENCY,Rutland Ward Nursing,HCL NURSING,HNSI0001540,3277.84
Department of Health,Leicestershire Partnership NHS Trust,11/01/24,NURSE - BAND 2 - AGENCY,St Lukes Stroke Ward,HCL NURSING,HNSI0001540,3779.68
Department of Health,Leicestershire Partnership NHS Trust,11/01/24,NURSE - BAND 5 - AGENCY,St Lukes Stroke Ward,HCL NURSING,HNSI0001540,2157.89
Department of Health,Leicestershire Partnership NHS Trust,11/01/24,NURSE - BAND 2 - AGENCY,St Lukes Ward 3,HCL NURSING,HNSI0001540,3801.13
Department of Health,Leicestershire Partnership NHS Trust,11/01/24,NURSE - BAND 5 - AGENCY,St Lukes Ward 3,HCL NURSING,HNSI0001540,426.71
Department of Health,Leicestershire Partnership NHS Trust,11/01/24,NURSE - BAND 5 - AGENCY,West Planned Care  - Charnwood Hub,HCL NURSING,HNSI0001540,2830.23
Department of Health,Leicestershire Partnership NHS Trust,11/01/24,NURSE - BAND 5 - AGENCY,West Planned Care  - Hinckley Hub,HCL NURSING,HNSI0001540,2967.99
Department of Health,Leicestershire Partnership NHS Trust,15/01/24,Crs_NHS_LT1y -Resus Inventory Supplied.,Balance Sheet Collection,SUPPLY CHAIN CO LTD,1124272730,37177.91
Department of Health,Leicestershire Partnership NHS Trust,15/01/24,Med Trainees - FY1,Medical Trainees,UHL NHS TRUST (RWE),L0277809,34063.05
Department of Health,Leicestershire Partnership NHS Trust,16/01/24,Continence Products,City & County Continence Service,SUPPLY CHAIN CO LTD,1124279634,30564.65
Department of Health,Leicestershire Partnership NHS Trust,16/01/24,Continence Products,City & County Continence Service,SUPPLY CHAIN CO LTD,1124279496,29995.60
Department of Health,Leicestershire Partnership NHS Trust,16/01/24,Continence Products,City & County Continence Service,SUPPLY CHAIN CO LTD,1124279625,43775.25
Department of Health,Leicestershire Partnership NHS Trust,16/01/24,Continence Products,City & County Continence Service,SUPPLY CHAIN CO LTD,1124279624,48366.68
Department of Health,Leicestershire Partnership NHS Trust,16/01/24,Continence Products,City & County Continence Service,SUPPLY CHAIN CO LTD,1124279129,59278.43
Department of Health,Leicestershire Partnership NHS Trust,16/01/24,Nurse - Band 6 -Agency,AMH - Central Access Point,HCL NURSING,HNSI0001544,2583.18
Department of Health,Leicestershire Partnership NHS Trust,16/01/24,Nurse - Band 6 -Agency,Adult City East CMHT,HCL NURSING,HNSI0001544,1200.38
Department of Health,Leicestershire Partnership NHS Trust,16/01/24,Nurse - Band 6 -Agency,Adult County North West Leicestershire CMHT,HCL NURSING,HNSI0001544,1084.23
Department of Health,Leicestershire Partnership NHS Trust,16/01/24,NURSE - BAND 2 - AGENCY,Agnes Unit,HCL NURSING,HNSI0001544,9778.35
Department of Health,Leicestershire Partnership NHS Trust,16/01/24,NURSE - BAND 5 - AGENCY,Agnes Unit,HCL NURSING,HNSI0001544,23427.27
Department of Health,Leicestershire Partnership NHS Trust,16/01/24,Nurse - Band 7 - Agency,Agnes Unit,HCL NURSING,HNSI0001544,325.51
Department of Health,Leicestershire Partnership NHS Trust,16/01/24,NURSE - BAND 2 - AGENCY,Ashby Ward (Bradgate Unit),HCL NURSING,HNSI0001544,1463.59
Department of Health,Leicestershire Partnership NHS Trust,16/01/24,NURSE - BAND 5 - AGENCY,Ashby Ward (Bradgate Unit),HCL NURSING,HNSI0001544,9413.41
Department of Health,Leicestershire Partnership NHS Trust,16/01/24,NURSE - BAND 2 - AGENCY,Aston Ward Bradgate Unit (Prev Welford),HCL NURSING,HNSI0001544,790.68
Department of Health,Leicestershire Partnership NHS Trust,16/01/24,NURSE - BAND 5 - AGENCY,Aston Ward Bradgate Unit (Prev Welford),HCL NURSING,HNSI0001544,1479.23
Department of Health,Leicestershire Partnership NHS Trust,16/01/24,NURSE - BAND 2 - AGENCY,Beaumont Ward - Bradgate Unit,HCL NURSING,HNSI0001544,1253.48
Department of Health,Leicestershire Partnership NHS Trust,16/01/24,NURSE - BAND 5 - AGENCY,Beaumont Ward - Bradgate Unit,HCL NURSING,HNSI0001544,7056.32
Department of Health,Leicestershire Partnership NHS Trust,16/01/24,NURSE - BAND 2 - AGENCY,Belvoir Psychiatric Intensive Care Unit,HCL NURSING,HNSI0001544,2050.50
Department of Health,Leicestershire Partnership NHS Trust,16/01/24,NURSE - BAND 5 - AGENCY,Belvoir Psychiatric Intensive Care Unit,HCL NURSING,HNSI0001544,4447.54
Department of Health,Leicestershire Partnership NHS Trust,16/01/24,NURSE - BAND 2 - AGENCY,Bosworth Ward - Bradgate Unit,HCL NURSING,HNSI0001544,3448.74
Department of Health,Leicestershire Partnership NHS Trust,16/01/24,NURSE - BAND 5 - AGENCY,Bosworth Ward - Bradgate Unit,HCL NURSING,HNSI0001544,1586.44
Department of Health,Leicestershire Partnership NHS Trust,16/01/24,NURSE - BAND 5 - AGENCY,Cedar (Willows),HCL NURSING,HNSI0001544,2047.72
Department of Health,Leicestershire Partnership NHS Trust,16/01/24,Nurse - Band 6 -Agency,City East CMHT MHSOP,HCL NURSING,HNSI0001544,641.98
Department of Health,Leicestershire Partnership NHS Trust,16/01/24,NURSE - BAND 2 - AGENCY,Coleman Ward,HCL NURSING,HNSI0001544,4410.78
Department of Health,Leicestershire Partnership NHS Trust,16/01/24,NURSE - BAND 5 - AGENCY,Coleman Ward,HCL NURSING,HNSI0001544,4237.71
Department of Health,Leicestershire Partnership NHS Trust,16/01/24,NURSE - BAND 5 - AGENCY,Crisis Resolution,HCL NURSING,HNSI0001544,2485.10
Department of Health,Leicestershire Partnership NHS Trust,16/01/24,NURSE - BAND 2 - AGENCY,Griffin Ward (HPC),HCL NURSING,HNSI0001544,275.92
Department of Health,Leicestershire Partnership NHS Trust,16/01/24,NURSE - BAND 5 - AGENCY,Griffin Ward (HPC),HCL NURSING,HNSI0001544,7990.12
Department of Health,Leicestershire Partnership NHS Trust,16/01/24,NURSE - BAND 2 - AGENCY,Gwendolen Ward,HCL NURSING,HNSI0001544,2759.89
Department of Health,Leicestershire Partnership NHS Trust,16/01/24,NURSE - BAND 5 - AGENCY,Gwendolen Ward,HCL NURSING,HNSI0001544,4976.93
Department of Health,Leicestershire Partnership NHS Trust,16/01/24,NURSE - BAND 2 - AGENCY,Heather Ward,HCL NURSING,HNSI0001544,1803.55
Department of Health,Leicestershire Partnership NHS Trust,16/01/24,NURSE - BAND 5 - AGENCY,Heather Ward,HCL NURSING,HNSI0001544,4413.99
Department of Health,Leicestershire Partnership NHS Trust,16/01/24,NURSE - BAND 5 - AGENCY,Kirby Ward,HCL NURSING,HNSI0001544,1749.89
Department of Health,Leicestershire Partnership NHS Trust,16/01/24,NURSE - BAND 5 - AGENCY,Maple Ward,HCL NURSING,HNSI0001544,2838.63
Department of Health,Leicestershire Partnership NHS Trust,16/01/24,NURSE - BAND 2 - AGENCY,Mill Lodge,HCL NURSING,HNSI0001544,743.86
Department of Health,Leicestershire Partnership NHS Trust,16/01/24,NURSE - BAND 5 - AGENCY,Mill Lodge,HCL NURSING,HNSI0001544,2161.53
Department of Health,Leicestershire Partnership NHS Trust,16/01/24,NURSE - BAND 2 - AGENCY,Phoenix Ward (HPC),HCL NURSING,HNSI0001544,693.85
Department of Health,Leicestershire Partnership NHS Trust,16/01/24,NURSE - BAND 5 - AGENCY,Phoenix Ward (HPC),HCL NURSING,HNSI0001544,2544.57
Department of Health,Leicestershire Partnership NHS Trust,16/01/24,NURSE - BAND 5 - AGENCY,Place Of Safety Assessment Unit,HCL NURSING,HNSI0001544,2819.48
Department of Health,Leicestershire Partnership NHS Trust,16/01/24,NURSE - BAND 5 - AGENCY,Sycamore (Willows),HCL NURSING,HNSI0001544,927.05
Department of Health,Leicestershire Partnership NHS Trust,16/01/24,NURSE - BAND 2 - AGENCY,Thornton Ward - Bradgate Unit,HCL NURSING,HNSI0001544,857.57
Department of Health,Leicestershire Partnership NHS Trust,16/01/24,NURSE - BAND 5 - AGENCY,Thornton Ward - Bradgate Unit,HCL NURSING,HNSI0001544,6858.70
Department of Health,Leicestershire Partnership NHS Trust,16/01/24,Nurse - Band 6 -Agency,CAMHS Waiting List Monies,HCL WORKFORCE SOLUTIONS,HWSI0002066,12646.16
Department of Health,Leicestershire Partnership NHS Trust,16/01/24,Nurse - Band 7 - Agency,City West CMHT MHSOP,HCL WORKFORCE SOLUTIONS,HWSI0002066,1095.00
Department of Health,Leicestershire Partnership NHS Trust,16/01/24,Nurse - Band 6 -Agency,Crisis Response and Home Treatment,HCL WORKFORCE SOLUTIONS,HWSI0002066,7570.88
Department of Health,Leicestershire Partnership NHS Trust,16/01/24,Nurse - Band 6 -Agency,AMH - Central Access Point,HCL WORKFORCE SOLUTIONS,HWSI0002065,8997.70
Department of Health,Leicestershire Partnership NHS Trust,16/01/24,Nurse - Band 6 -Agency,Adult City Central CMHT - St Peters,HCL WORKFORCE SOLUTIONS,HWSI0002065,1183.63
Department of Health,Leicestershire Partnership NHS Trust,16/01/24,Nurse - Band 6 -Agency,Adult County South Leicestershire CMHT,HCL WORKFORCE SOLUTIONS,HWSI0002065,2505.70
Department of Health,Leicestershire Partnership NHS Trust,16/01/24,Nurse - Band 6 -Agency,City West CMHT MHSOP,HCL WORKFORCE SOLUTIONS,HWSI0002065,3294.12
Department of Health,Leicestershire Partnership NHS Trust,16/01/24,Nurse - Band 6 -Agency,Crisis Resolution,HCL WORKFORCE SOLUTIONS,HWSI0002065,9078.03
Department of Health,Leicestershire Partnership NHS Trust,16/01/24,Nurse - Band 6 -Agency,Mental Health Liaison Team,HCL WORKFORCE SOLUTIONS,HWSI0002065,1959.53
Department of Health,Leicestershire Partnership NHS Trust,16/01/24,Drugs,Adult City Drugs,POLAR SPEED THERMOLOGISTICS,0001199918,15122.44
Department of Health,Leicestershire Partnership NHS Trust,16/01/24,Drugs,Adult County Drugs,POLAR SPEED THERMOLOGISTICS,0001199918,22683.67
Department of Health,Leicestershire Partnership NHS Trust,16/01/24,Electricity,Estates & Facilities Central,UHL NHS TRUST (RWE),L0277840,56255.76
Department of Health,Leicestershire Partnership NHS Trust,16/01/24,Printing Costs,Estates & Facilities Central,LEXMARK INTERNATIONAL LTD,900650307451,25877.55
Department of Health,Leicestershire Partnership NHS Trust,17/01/24,Services / Recharges from NHS Trusts,Inter Unit I & E Distribution,UHL NHS TRUST (RWE),L0277846,31233.67
Department of Health,Leicestershire Partnership NHS Trust,18/01/24,GP IT Expenditure,Area Team,SOFTCAT PLC,INVUK1151511,37140.00
Department of Health,Leicestershire Partnership NHS Trust,18/01/24,WIP Project Not in BS - Information Technology,Work in Progress,SOFTCAT PLC,INVUK1156723,31550.40
Department of Health,Leicestershire Partnership NHS Trust,18/01/24,Mobile Telephone Rental / Calls,Specific Unit Budget Reserves,VODAFONE CORPORATE LTD,JANUARY2024,70742.68
Department of Health,Leicestershire Partnership NHS Trust,19/01/24,Med GP Trainees,Medical Trainees,MWL TEACHING HOSPITALS NHS TRUST,16827877,75000.00
Department of Health,Leicestershire Partnership NHS Trust,19/01/24,Gas,"Beaumont Leys Health Centre (P94, LPT)",TOTAL GAS & POWER LTD,327506195/24,2284.70
Department of Health,Leicestershire Partnership NHS Trust,19/01/24,Gas,"Bennion Centre (including Forest Grange Day Unit) (P8, LPT)",TOTAL GAS & POWER LTD,327506195/24,25378.62
Department of Health,Leicestershire Partnership NHS Trust,19/01/24,Gas,"Bradgate Unit (including Glenvale day Unit) (P7, LPT)",TOTAL GAS & POWER LTD,327506195/24,51197.42
Department of Health,Leicestershire Partnership NHS Trust,19/01/24,Gas,Bridge Park Plaza - First Floor (LPT),TOTAL GAS & POWER LTD,327506195/24,4373.71
Department of Health,Leicestershire Partnership NHS Trust,19/01/24,Gas,"Bridge Park Road - Units 2 and 3 (P148, LPT)",TOTAL GAS & POWER LTD,327506195/24,599.78
Department of Health,Leicestershire Partnership NHS Trust,19/01/24,Gas,"Coalville Community Hospital (P138, LPT)",TOTAL GAS & POWER LTD,327506195/24,28634.77
Department of Health,Leicestershire Partnership NHS Trust,19/01/24,Gas,"Coalville Health Centre (P121, LPT)",TOTAL GAS & POWER LTD,327506195/24,2237.69
Department of Health,Leicestershire Partnership NHS Trust,19/01/24,Gas,"Evington Centre (P6, LPT)",TOTAL GAS & POWER LTD,327506195/24,3964.34
Department of Health,Leicestershire Partnership NHS Trust,19/01/24,Gas,"Farm Lodge (P34, LPT)",TOTAL GAS & POWER LTD,327506195/24,560.59
Department of Health,Leicestershire Partnership NHS Trust,19/01/24,Gas,"Feilding Palmer Hospital (Lutterworth) (P131, LPT)",TOTAL GAS & POWER LTD,327506195/24,5168.84
Department of Health,Leicestershire Partnership NHS Trust,19/01/24,Gas,"Frith Cottages 3 & 4 (P36, LPT)",TOTAL GAS & POWER LTD,327506195/24,566.35
Department of Health,Leicestershire Partnership NHS Trust,19/01/24,Gas,HIS,TOTAL GAS & POWER LTD,327506195/24,789.90
Department of Health,Leicestershire Partnership NHS Trust,19/01/24,Gas,"Hawthorne Centre - Coalville (P14, LPT)",TOTAL GAS & POWER LTD,327506195/24,1559.45
Department of Health,Leicestershire Partnership NHS Trust,19/01/24,Gas,"Hinckley and Bosworth Community Hospital (Sunnyside) (P133, LPT)",TOTAL GAS & POWER LTD,327506195/24,19058.44
Department of Health,Leicestershire Partnership NHS Trust,19/01/24,Gas,"Loughborough Hospital (P136, LPT)",TOTAL GAS & POWER LTD,327506195/24,58324.58
Department of Health,Leicestershire Partnership NHS Trust,19/01/24,Gas,Mawson House (LPT),TOTAL GAS & POWER LTD,327506195/24,8149.16
Department of Health,Leicestershire Partnership NHS Trust,19/01/24,Gas,"Mett Centre (P49, LPT)",TOTAL GAS & POWER LTD,327506195/24,919.67
Department of Health,Leicestershire Partnership NHS Trust,19/01/24,Gas,"Narborough Health Centre (P117, LPT)",TOTAL GAS & POWER LTD,327506195/24,1784.58
Department of Health,Leicestershire Partnership NHS Trust,19/01/24,Gas,"Neville Centre - LGH (was DSC) (P147, LPT)",TOTAL GAS & POWER LTD,327506195/24,3504.25
Department of Health,Leicestershire Partnership NHS Trust,19/01/24,Gas,"OSL House (P54, LPT)",TOTAL GAS & POWER LTD,327506195/24,2350.43
Department of Health,Leicestershire Partnership NHS Trust,19/01/24,Gas,"Orchard Resource Centre (P15, LPT)",TOTAL GAS & POWER LTD,327506195/24,1960.94
Department of Health,Leicestershire Partnership NHS Trust,19/01/24,Gas,"Rutland Memorial Hospital (P134, LPT)",TOTAL GAS & POWER LTD,327506195/24,609.81
Department of Health,Leicestershire Partnership NHS Trust,19/01/24,Gas,"Stewart House (P61, LPT)",TOTAL GAS & POWER LTD,327506195/24,12070.19
Department of Health,Leicestershire Partnership NHS Trust,19/01/24,Gas,"Swithland House - London Road 352 (P44, LPT)",TOTAL GAS & POWER LTD,327506195/24,3202.70
Department of Health,Leicestershire Partnership NHS Trust,19/01/24,Gas,"The Agnes Unit (AKA Assessment and Treatment Centre) (P85, LPT)",TOTAL GAS & POWER LTD,327506195/24,13821.18
Department of Health,Leicestershire Partnership NHS Trust,19/01/24,Gas,The Beacon,TOTAL GAS & POWER LTD,327506195/24,4841.87
Department of Health,Leicestershire Partnership NHS Trust,19/01/24,Gas,"The Cedars (P19, LPT)",TOTAL GAS & POWER LTD,327506195/24,1086.12
Department of Health,Leicestershire Partnership NHS Trust,19/01/24,Gas,"The Grange 1 (P4, LPT)",TOTAL GAS & POWER LTD,327506195/24,934.56
Department of Health,Leicestershire Partnership NHS Trust,19/01/24,Gas,"The Grange 2 (P41, LPT)",TOTAL GAS & POWER LTD,327506195/24,693.24
Department of Health,Leicestershire Partnership NHS Trust,19/01/24,Gas,"The Willows - Cordelia Close (P22, LPT)",TOTAL GAS & POWER LTD,327506195/24,12928.08
Department of Health,Leicestershire Partnership NHS Trust,19/01/24,Gas,"Valentine Centre (P3, LPT)",TOTAL GAS & POWER LTD,327506195/24,5886.71
Department of Health,Leicestershire Partnership NHS Trust,19/01/24,Gas,"Westcotes Group -Westcotes House (P78, LPT)",TOTAL GAS & POWER LTD,327506195/24,3402.37
Department of Health,Leicestershire Partnership NHS Trust,19/01/24,Gas,"Winstanley Drive Health Centre (P8, LPT)",TOTAL GAS & POWER LTD,327506195/24,3194.70
Department of Health,Leicestershire Partnership NHS Trust,22/01/24,Nurse - Band 6 -Agency,AMH - Central Access Point,HCL NURSING,HNSI0001551,3199.08
Department of Health,Leicestershire Partnership NHS Trust,22/01/24,Nurse - Band 6 -Agency,Adult City Central CMHT - St Peters,HCL NURSING,HNSI0001551,1365.26
Department of Health,Leicestershire Partnership NHS Trust,22/01/24,Nurse - Band 6 -Agency,Adult City East CMHT,HCL NURSING,HNSI0001551,1056.95
Department of Health,Leicestershire Partnership NHS Trust,22/01/24,Nurse - Band 6 -Agency,Adult County North West Leicestershire CMHT,HCL NURSING,HNSI0001551,1716.78
Department of Health,Leicestershire Partnership NHS Trust,22/01/24,NURSE - BAND 2 - AGENCY,Agnes Unit,HCL NURSING,HNSI0001551,7466.87
Department of Health,Leicestershire Partnership NHS Trust,22/01/24,NURSE - BAND 5 - AGENCY,Agnes Unit,HCL NURSING,HNSI0001551,20683.45
Department of Health,Leicestershire Partnership NHS Trust,22/01/24,NURSE - BAND 2 - AGENCY,Ashby Ward (Bradgate Unit),HCL NURSING,HNSI0001551,2860.04
Department of Health,Leicestershire Partnership NHS Trust,22/01/24,NURSE - BAND 5 - AGENCY,Ashby Ward (Bradgate Unit),HCL NURSING,HNSI0001551,4868.42
Department of Health,Leicestershire Partnership NHS Trust,22/01/24,NURSE - BAND 5 - AGENCY,Aston Ward Bradgate Unit (Prev Welford),HCL NURSING,HNSI0001551,508.45
Department of Health,Leicestershire Partnership NHS Trust,22/01/24,NURSE - BAND 2 - AGENCY,Beaumont Ward - Bradgate Unit,HCL NURSING,HNSI0001551,655.69
Department of Health,Leicestershire Partnership NHS Trust,22/01/24,NURSE - BAND 5 - AGENCY,Beaumont Ward - Bradgate Unit,HCL NURSING,HNSI0001551,9455.24
Department of Health,Leicestershire Partnership NHS Trust,22/01/24,NURSE - BAND 2 - AGENCY,Belvoir Psychiatric Intensive Care Unit,HCL NURSING,HNSI0001551,1061.80
Department of Health,Leicestershire Partnership NHS Trust,22/01/24,NURSE - BAND 5 - AGENCY,Belvoir Psychiatric Intensive Care Unit,HCL NURSING,HNSI0001551,3764.50
Department of Health,Leicestershire Partnership NHS Trust,22/01/24,NURSE - BAND 2 - AGENCY,Bosworth Ward - Bradgate Unit,HCL NURSING,HNSI0001551,886.49
Department of Health,Leicestershire Partnership NHS Trust,22/01/24,NURSE - BAND 5 - AGENCY,Bosworth Ward - Bradgate Unit,HCL NURSING,HNSI0001551,1490.42
Department of Health,Leicestershire Partnership NHS Trust,22/01/24,NURSE - BAND 2 - AGENCY,Cedar (Willows),HCL NURSING,HNSI0001551,470.18
Department of Health,Leicestershire Partnership NHS Trust,22/01/24,NURSE - BAND 5 - AGENCY,Cedar (Willows),HCL NURSING,HNSI0001551,1266.54
Department of Health,Leicestershire Partnership NHS Trust,22/01/24,Nurse - Band 6 -Agency,City East CMHT MHSOP,HCL NURSING,HNSI0001551,855.97
Department of Health,Leicestershire Partnership NHS Trust,22/01/24,NURSE - BAND 2 - AGENCY,Coleman Ward,HCL NURSING,HNSI0001551,2597.50
Department of Health,Leicestershire Partnership NHS Trust,22/01/24,NURSE - BAND 5 - AGENCY,Coleman Ward,HCL NURSING,HNSI0001551,5591.15
Department of Health,Leicestershire Partnership NHS Trust,22/01/24,NURSE - BAND 5 - AGENCY,Crisis Resolution,HCL NURSING,HNSI0001551,1956.35
Department of Health,Leicestershire Partnership NHS Trust,22/01/24,NURSE - BAND 5 - AGENCY,Griffin Ward (HPC),HCL NURSING,HNSI0001551,3039.16
Department of Health,Leicestershire Partnership NHS Trust,22/01/24,NURSE - BAND 2 - AGENCY,Gwendolen Ward,HCL NURSING,HNSI0001551,1177.07
Department of Health,Leicestershire Partnership NHS Trust,22/01/24,NURSE - BAND 5 - AGENCY,Gwendolen Ward,HCL NURSING,HNSI0001551,1810.20
Department of Health,Leicestershire Partnership NHS Trust,22/01/24,NURSE - BAND 2 - AGENCY,Heather Ward,HCL NURSING,HNSI0001551,693.85
Department of Health,Leicestershire Partnership NHS Trust,22/01/24,NURSE - BAND 5 - AGENCY,Heather Ward,HCL NURSING,HNSI0001551,3753.71
Department of Health,Leicestershire Partnership NHS Trust,22/01/24,NURSE - BAND 5 - AGENCY,Maple Ward,HCL NURSING,HNSI0001551,976.78
Department of Health,Leicestershire Partnership NHS Trust,22/01/24,NURSE - BAND 2 - AGENCY,Mill Lodge,HCL NURSING,HNSI0001551,617.53
Department of Health,Leicestershire Partnership NHS Trust,22/01/24,NURSE - BAND 5 - AGENCY,Mill Lodge,HCL NURSING,HNSI0001551,1480.36
Department of Health,Leicestershire Partnership NHS Trust,22/01/24,NURSE - BAND 2 - AGENCY,Phoenix Ward (HPC),HCL NURSING,HNSI0001551,229.30
Department of Health,Leicestershire Partnership NHS Trust,22/01/24,NURSE - BAND 5 - AGENCY,Phoenix Ward (HPC),HCL NURSING,HNSI0001551,2411.29
Department of Health,Leicestershire Partnership NHS Trust,22/01/24,NURSE - BAND 2 - AGENCY,Place Of Safety Assessment Unit,HCL NURSING,HNSI0001551,426.97
Department of Health,Leicestershire Partnership NHS Trust,22/01/24,NURSE - BAND 5 - AGENCY,Place Of Safety Assessment Unit,HCL NURSING,HNSI0001551,1406.28
Department of Health,Leicestershire Partnership NHS Trust,22/01/24,NURSE - BAND 5 - AGENCY,Sycamore (Willows),HCL NURSING,HNSI0001551,1813.94
Department of Health,Leicestershire Partnership NHS Trust,22/01/24,NURSE - BAND 5 - AGENCY,Thornton Ward - Bradgate Unit,HCL NURSING,HNSI0001551,2299.33
Department of Health,Leicestershire Partnership NHS Trust,22/01/24,NURSE - BAND 2 - AGENCY,CAMHS Inpatient Service,HCL NURSING,HNSI0001553,5716.34
Department of Health,Leicestershire Partnership NHS Trust,22/01/24,NURSE - BAND 5 - AGENCY,CAMHS Inpatient Service,HCL NURSING,HNSI0001553,7856.43
Department of Health,Leicestershire Partnership NHS Trust,22/01/24,Nurse - Band 7 - Agency,CAMHS Waiting List Monies,HCL NURSING,HNSI0001553,4396.25
Department of Health,Leicestershire Partnership NHS Trust,22/01/24,Nurse - Band 7 - Agency,Crisis Response and Home Treatment,HCL NURSING,HNSI0001553,575.80
Department of Health,Leicestershire Partnership NHS Trust,22/01/24,NURSE - BAND 2 - AGENCY,Welford Ward (Prev Langley),HCL NURSING,HNSI0001553,470.09
Department of Health,Leicestershire Partnership NHS Trust,22/01/24,NURSE - BAND 5 - AGENCY,Welford Ward (Prev Langley),HCL NURSING,HNSI0001553,1830.40
Department of Health,Leicestershire Partnership NHS Trust,23/01/24,NURSE - BAND 2 - AGENCY,Beechwood Ward,HCL NURSING,HNSI0001545,5835.42
Department of Health,Leicestershire Partnership NHS Trust,23/01/24,NURSE - BAND 5 - AGENCY,Beechwood Ward,HCL NURSING,HNSI0001545,2899.40
Department of Health,Leicestershire Partnership NHS Trust,23/01/24,NURSE - BAND 5 - AGENCY,City Planned Care - East,HCL NURSING,HNSI0001545,43283.46
Department of Health,Leicestershire Partnership NHS Trust,23/01/24,NURSE - BAND 5 - AGENCY,City Planned Care - West,HCL NURSING,HNSI0001545,41720.77
Department of Health,Leicestershire Partnership NHS Trust,23/01/24,NURSE - BAND 2 - AGENCY,Clarendon Ward,HCL NURSING,HNSI0001545,3831.39
Department of Health,Leicestershire Partnership NHS Trust,23/01/24,NURSE - BAND 5 - AGENCY,Clarendon Ward,HCL NURSING,HNSI0001545,3474.01
Department of Health,Leicestershire Partnership NHS Trust,23/01/24,NURSE - BAND 2 - AGENCY,Coalville Snibston Ward,HCL NURSING,HNSI0001545,5316.66
Department of Health,Leicestershire Partnership NHS Trust,23/01/24,NURSE - BAND 5 - AGENCY,Coalville Snibston Ward,HCL NURSING,HNSI0001545,4600.21
Department of Health,Leicestershire Partnership NHS Trust,23/01/24,NURSE - BAND 2 - AGENCY,Coalville Ward 2,HCL NURSING,HNSI0001545,3318.95
Department of Health,Leicestershire Partnership NHS Trust,23/01/24,NURSE - BAND 5 - AGENCY,Coalville Ward 2,HCL NURSING,HNSI0001545,1345.92
Department of Health,Leicestershire Partnership NHS Trust,23/01/24,NURSE - BAND 2 - AGENCY,Dalgliesh Ward,HCL NURSING,HNSI0001545,4194.03
Department of Health,Leicestershire Partnership NHS Trust,23/01/24,NURSE - BAND 5 - AGENCY,Dalgliesh Ward,HCL NURSING,HNSI0001545,5090.35
Department of Health,Leicestershire Partnership NHS Trust,23/01/24,NURSE - BAND 5 - AGENCY,"East Planned Care - Melton,Syston,Rutland",HCL NURSING,HNSI0001545,4981.23
Department of Health,Leicestershire Partnership NHS Trust,23/01/24,NURSE - BAND 5 - AGENCY,"East Planned Care - Oadby,Wigston & Harborough",HCL NURSING,HNSI0001545,4540.09
Department of Health,Leicestershire Partnership NHS Trust,23/01/24,NURSE - BAND 2 - AGENCY,H&B Comm Hosp East Ward,HCL NURSING,HNSI0001545,15788.96
Department of Health,Leicestershire Partnership NHS Trust,23/01/24,NURSE - BAND 5 - AGENCY,H&B Comm Hosp East Ward,HCL NURSING,HNSI0001545,7284.14
Department of Health,Leicestershire Partnership NHS Trust,23/01/24,NURSE - BAND 2 - AGENCY,H&B Comm Hosp North Ward,HCL NURSING,HNSI0001545,3269.80
Department of Health,Leicestershire Partnership NHS Trust,23/01/24,NURSE - BAND 5 - AGENCY,H&B Comm Hosp North Ward,HCL NURSING,HNSI0001545,1063.03
Department of Health,Leicestershire Partnership NHS Trust,23/01/24,NURSE - BAND 2 - AGENCY,Lough Swithland Ward,HCL NURSING,HNSI0001545,3313.59
Department of Health,Leicestershire Partnership NHS Trust,23/01/24,NURSE - BAND 5 - AGENCY,Lough Swithland Ward,HCL NURSING,HNSI0001545,2212.58
Department of Health,Leicestershire Partnership NHS Trust,23/01/24,NURSE - BAND 2 - AGENCY,Loughborough Charnwood Ward,HCL NURSING,HNSI0001545,4927.53
Department of Health,Leicestershire Partnership NHS Trust,23/01/24,NURSE - BAND 5 - AGENCY,Loughborough Charnwood Ward,HCL NURSING,HNSI0001545,8124.14
Department of Health,Leicestershire Partnership NHS Trust,23/01/24,NURSE - BAND 2 - AGENCY,Rutland Ward Nursing,HCL NURSING,HNSI0001545,5851.59
Department of Health,Leicestershire Partnership NHS Trust,23/01/24,NURSE - BAND 5 - AGENCY,Rutland Ward Nursing,HCL NURSING,HNSI0001545,4424.69
Department of Health,Leicestershire Partnership NHS Trust,23/01/24,NURSE - BAND 2 - AGENCY,St Lukes Stroke Ward,HCL NURSING,HNSI0001545,7236.19
Department of Health,Leicestershire Partnership NHS Trust,23/01/24,NURSE - BAND 5 - AGENCY,St Lukes Stroke Ward,HCL NURSING,HNSI0001545,2768.73
Department of Health,Leicestershire Partnership NHS Trust,23/01/24,NURSE - BAND 2 - AGENCY,St Lukes Ward 3,HCL NURSING,HNSI0001545,2721.48
Department of Health,Leicestershire Partnership NHS Trust,23/01/24,NURSE - BAND 5 - AGENCY,St Lukes Ward 3,HCL NURSING,HNSI0001545,1675.51
Department of Health,Leicestershire Partnership NHS Trust,23/01/24,NURSE - BAND 5 - AGENCY,West Planned Care  - Charnwood Hub,HCL NURSING,HNSI0001545,2767.18
Department of Health,Leicestershire Partnership NHS Trust,23/01/24,NURSE - BAND 5 - AGENCY,West Planned Care  - Hinckley Hub,HCL NURSING,HNSI0001545,7590.18
Department of Health,Leicestershire Partnership NHS Trust,23/01/24,Furniture & Fittings,DMH Management,PINEAPPLE CONTRACTS,SI/90463,60184.80
Department of Health,Leicestershire Partnership NHS Trust,23/01/24,Crs_NHS_LT1y -Resus Inventory Supplied.,Balance Sheet Collection,SUPPLY CHAIN CO LTD,1124284790,38867.90
Department of Health,Leicestershire Partnership NHS Trust,23/01/24,Healthcare Services / Recharges from Non-NHS Bodies,Adult Eating Disorder Collaborative,ELLERN MEDE MOORGATE,OTM0865,37200.00
Department of Health,Leicestershire Partnership NHS Trust,23/01/24,Healthcare Services / Recharges from Non-NHS Bodies,Medical Trainees,UNIVERSITY OF LEICESTER,2230129765,157188.71
Department of Health,Leicestershire Partnership NHS Trust,23/01/24,Telephone equipment,"Bradgate Unit (including Glenvale day Unit) (P7, LPT)",VIRGIN MEDIA BUSINESS,60052412,56387.22
Department of Health,Leicestershire Partnership NHS Trust,23/01/24,Network Costs - WAN Maint,HIS Infrastructure,VIRGIN MEDIA BUSINESS,262421-216,35695.32
Department of Health,Leicestershire Partnership NHS Trust,23/01/24,NURSE - BAND 2 - AGENCY,Beechwood Ward,HCL NURSING,HNSI0001552,5240.23
Department of Health,Leicestershire Partnership NHS Trust,23/01/24,NURSE - BAND 5 - AGENCY,Beechwood Ward,HCL NURSING,HNSI0001552,1937.93
Department of Health,Leicestershire Partnership NHS Trust,23/01/24,NURSE - BAND 5 - AGENCY,City Planned Care - East,HCL NURSING,HNSI0001552,22456.79
Department of Health,Leicestershire Partnership NHS Trust,23/01/24,NURSE - BAND 5 - AGENCY,City Planned Care - West,HCL NURSING,HNSI0001552,18237.57
Department of Health,Leicestershire Partnership NHS Trust,23/01/24,NURSE - BAND 2 - AGENCY,Clarendon Ward,HCL NURSING,HNSI0001552,3303.28
Department of Health,Leicestershire Partnership NHS Trust,23/01/24,NURSE - BAND 5 - AGENCY,Clarendon Ward,HCL NURSING,HNSI0001552,2457.10
Department of Health,Leicestershire Partnership NHS Trust,23/01/24,NURSE - BAND 2 - AGENCY,Coalville Snibston Ward,HCL NURSING,HNSI0001552,3786.84
Department of Health,Leicestershire Partnership NHS Trust,23/01/24,NURSE - BAND 5 - AGENCY,Coalville Snibston Ward,HCL NURSING,HNSI0001552,2967.14
Department of Health,Leicestershire Partnership NHS Trust,23/01/24,NURSE - BAND 2 - AGENCY,Coalville Ward 2,HCL NURSING,HNSI0001552,3430.26
Department of Health,Leicestershire Partnership NHS Trust,23/01/24,NURSE - BAND 5 - AGENCY,Coalville Ward 2,HCL NURSING,HNSI0001552,1691.34
Department of Health,Leicestershire Partnership NHS Trust,23/01/24,NURSE - BAND 2 - AGENCY,Coalville Ward 4,HCL NURSING,HNSI0001552,8225.29
Department of Health,Leicestershire Partnership NHS Trust,23/01/24,NURSE - BAND 5 - AGENCY,Coalville Ward 4,HCL NURSING,HNSI0001552,5223.74
Department of Health,Leicestershire Partnership NHS Trust,23/01/24,NURSE - BAND 2 - AGENCY,Dalgliesh Ward,HCL NURSING,HNSI0001552,4923.36
Department of Health,Leicestershire Partnership NHS Trust,23/01/24,NURSE - BAND 5 - AGENCY,Dalgliesh Ward,HCL NURSING,HNSI0001552,4331.63
Department of Health,Leicestershire Partnership NHS Trust,23/01/24,NURSE - BAND 5 - AGENCY,"East Planned Care - Melton,Syston,Rutland",HCL NURSING,HNSI0001552,1655.23
Department of Health,Leicestershire Partnership NHS Trust,23/01/24,NURSE - BAND 5 - AGENCY,"East Planned Care - Oadby,Wigston & Harborough",HCL NURSING,HNSI0001552,6926.27
Department of Health,Leicestershire Partnership NHS Trust,23/01/24,NURSE - BAND 2 - AGENCY,H&B Comm Hosp East Ward,HCL NURSING,HNSI0001552,13148.28
Department of Health,Leicestershire Partnership NHS Trust,23/01/24,NURSE - BAND 5 - AGENCY,H&B Comm Hosp East Ward,HCL NURSING,HNSI0001552,8481.27
Department of Health,Leicestershire Partnership NHS Trust,23/01/24,NURSE - BAND 2 - AGENCY,H&B Comm Hosp North Ward,HCL NURSING,HNSI0001552,2398.11
Department of Health,Leicestershire Partnership NHS Trust,23/01/24,NURSE - BAND 5 - AGENCY,H&B Comm Hosp North Ward,HCL NURSING,HNSI0001552,1575.77
Department of Health,Leicestershire Partnership NHS Trust,23/01/24,NURSE - BAND 2 - AGENCY,Lough Swithland Ward,HCL NURSING,HNSI0001552,2981.71
Department of Health,Leicestershire Partnership NHS Trust,23/01/24,NURSE - BAND 5 - AGENCY,Lough Swithland Ward,HCL NURSING,HNSI0001552,908.19
Department of Health,Leicestershire Partnership NHS Trust,23/01/24,NURSE - BAND 2 - AGENCY,Loughborough Charnwood Ward,HCL NURSING,HNSI0001552,7925.60
Department of Health,Leicestershire Partnership NHS Trust,23/01/24,NURSE - BAND 5 - AGENCY,Loughborough Charnwood Ward,HCL NURSING,HNSI0001552,15479.37
Department of Health,Leicestershire Partnership NHS Trust,23/01/24,NURSE - BAND 2 - AGENCY,Rutland Ward Nursing,HCL NURSING,HNSI0001552,3515.64
Department of Health,Leicestershire Partnership NHS Trust,23/01/24,NURSE - BAND 5 - AGENCY,Rutland Ward Nursing,HCL NURSING,HNSI0001552,3187.08
Department of Health,Leicestershire Partnership NHS Trust,23/01/24,NURSE - BAND 2 - AGENCY,St Lukes Stroke Ward,HCL NURSING,HNSI0001552,5649.86
Department of Health,Leicestershire Partnership NHS Trust,23/01/24,NURSE - BAND 5 - AGENCY,St Lukes Stroke Ward,HCL NURSING,HNSI0001552,2352.49
Department of Health,Leicestershire Partnership NHS Trust,23/01/24,NURSE - BAND 2 - AGENCY,St Lukes Ward 3,HCL NURSING,HNSI0001552,3090.43
Department of Health,Leicestershire Partnership NHS Trust,23/01/24,NURSE - BAND 5 - AGENCY,West Planned Care  - Charnwood Hub,HCL NURSING,HNSI0001552,4998.93
Department of Health,Leicestershire Partnership NHS Trust,23/01/24,NURSE - BAND 5 - AGENCY,West Planned Care  - Hinckley Hub,HCL NURSING,HNSI0001552,5537.41
Department of Health,Leicestershire Partnership NHS Trust,24/01/24,Staff Agency / Recruitment / Advertising Fees,International Recruitment,CHARKOS UK,690,31500.00
Department of Health,Leicestershire Partnership NHS Trust,24/01/24,FP10'S,Adult City Drugs,NHS BUS SERVICES AUTHORITY,1000079937,5903.36
Department of Health,Leicestershire Partnership NHS Trust,24/01/24,FP10'S,Adult County Drugs,NHS BUS SERVICES AUTHORITY,1000079937,16507.90
Department of Health,Leicestershire Partnership NHS Trust,24/01/24,FP10'S,CAMHS Outpatients,NHS BUS SERVICES AUTHORITY,1000079937,32986.70
Department of Health,Leicestershire Partnership NHS Trust,24/01/24,FP10'S,Community Paediatrics,NHS BUS SERVICES AUTHORITY,1000079937,62767.44
Department of Health,Leicestershire Partnership NHS Trust,24/01/24,FP10'S,Dementia Related Drugs and Investigations,NHS BUS SERVICES AUTHORITY,1000079937,3874.15
Department of Health,Leicestershire Partnership NHS Trust,24/01/24,FP10'S,Eating Disorders Outpatient Service,NHS BUS SERVICES AUTHORITY,1000079937,549.49
Department of Health,Leicestershire Partnership NHS Trust,24/01/24,FP10'S,Forensic Services - Community,NHS BUS SERVICES AUTHORITY,1000079937,1008.40
Department of Health,Leicestershire Partnership NHS Trust,24/01/24,FP10'S,LAC,NHS BUS SERVICES AUTHORITY,1000079937,222.76
Department of Health,Leicestershire Partnership NHS Trust,24/01/24,FP10'S,LOROS Pharmacy,NHS BUS SERVICES AUTHORITY,1000079937,6.31
Department of Health,Leicestershire Partnership NHS Trust,24/01/24,FP10'S,PIER Team - Early Intervention Services,NHS BUS SERVICES AUTHORITY,1000079937,26445.10
Department of Health,Leicestershire Partnership NHS Trust,24/01/24,FP10'S,Snr Med Staff (Inc Med Reps),NHS BUS SERVICES AUTHORITY,1000079937,7734.13
Department of Health,Leicestershire Partnership NHS Trust,26/01/24,CHP Estates Management,Merlyn Vaz Centre (CHP),COMM HLTH PARTNERSHIPS LTD,0060329414,88383.68
Department of Health,Leicestershire Partnership NHS Trust,26/01/24,CHP Estates Management,Westcotes Health Centre (CHP),COMM HLTH PARTNERSHIPS LTD,0060329416,39151.59
Department of Health,Leicestershire Partnership NHS Trust,26/01/24,NHS Property Services Estates Management,Uppingham Road Health Centre (PROPCO),NHS PROPERTY SERVICES LTD,774953,59034.12
Department of Health,Leicestershire Partnership NHS Trust,26/01/24,Occupational Health,HR Operations,UHL NHS TRUST (RWE),L0278084,88138.00
Department of Health,Leicestershire Partnership NHS Trust,29/01/24,Catering - Patient - Food,"Bradgate Unit (including Glenvale day Unit) (P7, LPT)",NH CASE LTD,W/C290124,19006.60
Department of Health,Leicestershire Partnership NHS Trust,29/01/24,Catering - Patient - Food,"Coalville Community Hospital (P138, LPT)",NH CASE LTD,W/C290124,973.95
Department of Health,Leicestershire Partnership NHS Trust,29/01/24,Catering - Patient - Food,"Hinckley and Bosworth Community Hospital (Sunnyside) (P133, LPT)",NH CASE LTD,W/C290124,1258.85
Department of Health,Leicestershire Partnership NHS Trust,29/01/24,Catering - Patient - Food,"Loughborough Hospital (P136, LPT)",NH CASE LTD,W/C290124,1585.41
Department of Health,Leicestershire Partnership NHS Trust,29/01/24,Catering - Patient - Food,"Stewart House (P61, LPT)",NH CASE LTD,W/C290124,847.18
Department of Health,Leicestershire Partnership NHS Trust,29/01/24,Catering - Patient - Food,"The Agnes Unit (AKA Assessment and Treatment Centre) (P85, LPT)",NH CASE LTD,W/C290124,943.86
Department of Health,Leicestershire Partnership NHS Trust,29/01/24,Catering - Patient - Food,"The Willows - Cordelia Close (P22, LPT)",NH CASE LTD,W/C290124,1013.65
Department of Health,Leicestershire Partnership NHS Trust,29/01/24,Crs_NHS_LT1y -Resus Inventory Supplied.,Balance Sheet Collection,SUPPLY CHAIN CO LTD,1124287618,36783.29
Department of Health,Leicestershire Partnership NHS Trust,30/01/24,Clinical Supervision - External Fees,Psychology & Psychological Therapies Mgt,THE DECIDER,2653,50000.00
Department of Health,Leicestershire Partnership NHS Trust,30/01/24,Pharmacy Payables Control A/C (LPT JAC),Balance Sheet Collection,SEQIRUS UK,9160161360,26838.00
Department of Health,Leicestershire Partnership NHS Trust,30/01/24,Staff Agency / Recruitment / Advertising Fees,International Recruitment,CHARKOS UK,733,27000.00
